{"text_format":"1","workbook":"xlsx","n_sheets":2,"sheets":["Основной прайс","Разное"],"not_rendered":{"charts":0,"images":0,"macros":0,"external_links":0,"defined_names":0,"comments":0,"pivot_tables":0},"unopened":[],"bounds":{"document_bytes":16777216,"sheet_cells":100000,"rows_first":2000,"rows_last":500,"rows_between":2000,"halvings":0,"cell_chars":16384,"cell_head_chars":4096},"cells_cut":0,"cells_raw":0,"read":"whole","date_system":"1900"}

{"sheet":"Основной прайс","index":0,"n_rows":90,"n_cols":58,"rows_kept":90,"cut":false,"hidden":false,"merged":[]}
[]
["LOMO DC inverter + Wi-Fi  R32"]
["GWH09QB-K6DND2E","GREE","Кондиционер GREE GWH09QB-K6DND2E","Кондиционеры",{"$f":"AX3*$BB$1","v":0},null,null,null,null,"- ","LOMO ","до 25","Гонконг","да","инвертор","9  тыс. БTE/ч","A++","R32",-22,"Gree",null,null,"Да","WiFi","Белый",null,null,null,null,null,null,null,null,null,null,null,null,null,null,null,null,null,null,null,null,null,null,null,null,882,null,644]
["GWH12QC-K6DND2D","GREE","Кондиционер GREE GWH12QC-K6DND2D","Кондиционеры",{"$f":"AX4*$BB$1","v":0},null,null,null,null,"- ","LOMO ","до 35","Гонконг","да","инвертор","12  тыс. БTE/ч","A++","R32",-22,"Gree",null,null,"Да","WiFi","Белый",null,null,null,null,null,null,null,null,null,null,null,null,null,null,null,null,null,null,null,null,null,null,null,null,945,null,690]
["GWH18QD-K6DND2D","GREE","Кондиционер GREE GWH18QD-K6DND2D","Кондиционеры",{"$f":"AX5*$BB$1","v":0},null,null,null,null,"- ","LOMO ","до 50","Гонконг","да","инвертор","18  тыс. БTE/ч","A++","R32",-22,"Gree",null,null,"Да","WiFi","Белый",null,null,null,null,null,null,null,null,null,null,null,null,null,null,null,null,null,null,null,null,null,null,null,null,1200,null,876]
["GWH24QE-K6DND2E","GREE","Кондиционер GREE GWH24QE-K6DND2E","Кондиционеры",{"$f":"AX6*$BB$1","v":0},null,null,null,null,"- ","LOMO ","до 75","Гонконг","да","инвертор","24 тыс. БTE/ч","A++","R32",-22,"Gree",null,null,"Да","WiFi","Белый",null,null,null,null,null,null,null,null,null,null,null,null,null,null,null,null,null,null,null,null,null,null,null,null,1340,null,978]
["MUSE inverter R32 "]
["GWH09AFC-K6DNA1A","GREE","Кондиционер GREE GWH09AFC-K6DNA1A","Кондиционеры",{"$f":"AX8*$BB$1","v":0},null,null,null,null,"- ","MUSE","до 25","Гонконг","Active Plasma","инвертор","9  тыс. БTE/ч","A++","R32",-22,"Gree",null,null,"Да",null,"Белый",null,null,null,null,null,null,null,null,null,null,null,null,null,null,null,null,null,null,null,null,null,null,null,null,898,null,656]
["GWH12AFC-K6DNA1D","GREE","Кондиционер GREE GWH12AFC-K6DNA1D","Кондиционеры",{"$f":"AX9*$BB$1","v":0},null,null,null,null,"- ","MUSE","до 35","Гонконг","Active Plasma","инвертор","12  тыс. БTE/ч","A++","R32",-22,"Gree",null,null,"Да",null,"Белый",null,null,null,null,null,null,null,null,null,null,null,null,null,null,null,null,null,null,null,null,null,null,null,null,961,null,702]
["GWH18AFD-K6DNA1D","GREE","Кондиционер GREE GWH18AFD-K6DNA1D","Кондиционеры",{"$f":"AX10*$BB$1","v":0},null,null,null,null,"- ","MUSE","до 50","Гонконг","Active Plasma","инвертор","18  тыс. БTE/ч","A++","R32",-22,"Gree",null,null,"Да",null,"Белый",null,null,null,null,null,null,null,null,null,null,null,null,null,null,null,null,null,null,null,null,null,null,null,null,1176,null,858]
["GWH24AFE-K6DNA1A","GREE","Кондиционер GREE GWH24AFE-K6DNA1A","Кондиционеры",{"$f":"AX11*$BB$1","v":0},null,null,null,null,"- ","MUSE","до 75","Гонконг","Active Plasma","инвертор","24 тыс. БTE/ч","A++","R32",-22,"Gree",null,null,"Да",null,"Белый",null,null,null,null,null,null,null,null,null,null,null,null,null,null,null,null,null,null,null,null,null,null,null,null,1365,null,996]
["Bora DC inverter + Wi-Fi  R32"]
["GWH09AAB-K6DNA5A (Wi-Fi)","GREE","Кондиционер GREE GWH09AAB-K6DNA5A (Wi-Fi)","Кондиционеры",{"$f":"AX13*$BB$1","v":0},null,null,null,null,"- ","Bora","до 25","Гонконг","да","инвертор","9  тыс. БTE/ч","A++","R32","-15","Gree","Холод: 0,781 / Тепло: 0,777",null,"Да","WiFi","Белый",null,"773x250x185","782x540x320",null,null,null,null,null,null,null,null,null,null,null,null,null,null,null,null,null,null,null,null,null,618,null,451]
["GWH12AAB-K6DNA5A (Wi-Fi)","GREE","Кондиционер GREE GWH12AAB-K6DNA5A (Wi-Fi)","Кондиционеры",{"$f":"AX14*$BB$1","v":0},null,null,null,null,"- ","Bora","до 35","Гонконг","да","инвертор","12  тыс. БTE/ч","A++","R32","-15","Gree","Холод: 0,997 / Тепло: 0,941",null,"Да","WiFi","Белый",null,"773x250x185","842x596x320",null,null,null,null,null,null,null,null,null,null,null,null,null,null,null,null,null,null,null,null,null,692,null,505]
["GWH18AAD-K6DNA5B (Wi-Fi)","GREE","Кондиционер GREE GWH18AAD-K6DNA5B (Wi-Fi)","Кондиционеры",{"$f":"AX15*$BB$1","v":0},null,null,null,null,"- ","Bora","до 50","Гонконг","да","инвертор","18  тыс. БTE/ч","A++","R32","-15","Gree","Холод: 1,43 / Тепло: 1,4",null,"Да","WiFi","Белый",null,"970x300x225","848x596x320",null,null,null,null,null,null,null,null,null,null,null,null,null,null,null,null,null,null,null,null,null,1025,null,748]
["GWH24AAD-K6DNA5A (Wi-Fi)","GREE","Кондиционер GREE GWH24AAD-K6DNA5A (Wi-Fi)","Кондиционеры",{"$f":"AX16*$BB$1","v":0},null,null,null,null,"- ","Bora","до 75","Гонконг","да","инвертор","24 тыс. БTE/ч","A++","R32","-15","Gree","Холод: 1,76 / Тепло: 1,86",null,"Да","WiFi","Белый",null,"970x300x225","848x596x320",null,null,null,null,null,null,null,null,null,null,null,null,null,null,null,null,null,null,null,null,null,1139,null,831]
["STAGE DC inverter +Wi-Fi,  R32, -30ºC, !!!N"]
["GWH09QD-S6DBD2A","GREE","Кондиционер GREE GWH09QD-S6DBD2A","Кондиционеры",{"$f":"AX18*$BB$1","v":0},null,null,null,null,"- ","STAG","до 25","Гонконг",null,"инвертор","9  тыс. БTE/ч","A+++","R32",-30,"Gree",null,null,"Да","WiFi","Белый",null,null,null,null,null,null,null,null,null,null,null,null,null,null,null,null,null,null,null,null,null,null,null,null,1071,null,782]
["GWH12QD-S6DBD2A","GREE","Кондиционер GREE GWH12QD-S6DBD2A","Кондиционеры",{"$f":"AX19*$BB$1","v":0},null,null,null,null,"- ","STAG","до 35","Гонконг",null,"инвертор","12  тыс. БTE/ч","A+++","R32",-30,"Gree",null,null,"Да","WiFi","Белый",null,null,null,null,null,null,null,null,null,null,null,null,null,null,null,null,null,null,null,null,null,null,null,null,1118,null,816]
["GWH18QE-S6DBD2B","GREE","Кондиционер GREE GWH18QE-S6DBD2B","Кондиционеры",{"$f":"AX20*$BB$1","v":0},null,null,null,null,"- ","STAG","до 50","Гонконг",null,"инвертор","18  тыс. БTE/ч","A+++","R32",-30,"Gree",null,null,"Да","WiFi","Белый",null,null,null,null,null,null,null,null,null,null,null,null,null,null,null,null,null,null,null,null,null,null,null,null,1260,null,920]
["GWH24QE-S6DBD2A","GREE","Кондиционер GREE GWH24QE-S6DBD2A","Кондиционеры",{"$f":"AX21*$BB$1","v":0},null,null,null,null,"- ","STAG","до 75","Гонконг",null,"инвертор","24 тыс. БTE/ч","A+++","R32",-30,"Gree",null,null,"Да","WiFi","Белый",null,null,null,null,null,null,null,null,null,null,null,null,null,null,null,null,null,null,null,null,null,null,null,null,1465,null,1069]
["Amber DC inverter  R32  -30⁰C"]
["GWH09YD-S6DBA2A","GREE","Кондиционер GREE GWH09YD-S6DBA2A","Кондиционеры",{"$f":"AX23*$BB$1","v":0},null,null,null,null,"- ","Amber","до 25","Гонконг",null,"инвертор","9  тыс. БTE/ч","A+++","R32",-30,"Gree",null,null,"Да","WiFi","Белый",null,null,null,null,null,null,null,null,null,null,null,null,null,null,null,null,null,null,null,null,null,null,null,null,1222,null,892]
["GWH12YD-S6DBA2A","GREE","Кондиционер GREE GWH12YD-S6DBA2A","Кондиционеры",{"$f":"AX24*$BB$1","v":0},null,null,null,null,"- ","Amber","до 35","Гонконг",null,"инвертор","12  тыс. БTE/ч","A+++","R32",-30,"Gree",null,null,"Да","WiFi","Белый",null,null,null,null,null,null,null,null,null,null,null,null,null,null,null,null,null,null,null,null,null,null,null,null,1269,null,926]
["GWH18YE-S6DBA2A","GREE","Кондиционер GREE GWH18YE-S6DBA2A","Кондиционеры",{"$f":"AX25*$BB$1","v":0},null,null,null,null,"- ","Amber","до 50","Гонконг",null,"инвертор","18  тыс. БTE/ч","A+++","R32",-30,"Gree",null,null,"Да","WiFi","Белый",null,null,null,null,null,null,null,null,null,null,null,null,null,null,null,null,null,null,null,null,null,null,null,null,1410,null,1029]
["GWH24YE-S6DBA2A","GREE","Кондиционер GREE GWH24YE-S6DBA2A","Кондиционеры",{"$f":"AX26*$BB$1","v":0},null,null,null,null,"- ","Amber","до 75","Гонконг",null,"инвертор","24 тыс. БTE/ч","A+++","R32",-30,"Gree",null,null,"Да","WiFi","Белый",null,null,null,null,null,null,null,null,null,null,null,null,null,null,null,null,null,null,null,null,null,null,null,null,1614,null,1178]
["Мультисплиты"]
["GWH(12)KF-K3DNA5G/I \"Change\"","GREE","Gree GWH(12)KF-K3DNA5G/I \"Change\" (Внутренний блок)","Внутренний блок",7257.4,"https://images.ua.prom.st/2177531798_w640_h640_vnutrennij-blok-multisplit-sistemy.jpg","https://ventbazar.ua/images/products/111104/Gree_GWH09KF-K3DNA5G.jpg","https://starclimate.com.ua/assets/frontend/img/Gree_products/Gree,P20ChangePro.jpg.pagespeed.ce.Vg3z0WW5Je.jpg",null,"- ","CHANGE","до 35","Китай","-","инвертор","12  тыс. БTE/ч","A+","R410A","-15","Gree",null,null,null,"Нет","Белый","2 года",null,null,"теплый пуск, авторазморозка, таймер, сохранение настроек, самодиагностика, самоочистка, автоматический перезапуск, пульт с термометром (i feel), дисплей на внутреннем блоке","для комнаты; для кухни; для детской; для квартиры; для дома; для магазина; ",null,null,null,null,null,null,"плазменный фильтр (электростатический)",null,null,null,null,null,null,null,null,null,null,null,null,null,7257.4,null,null,null,null,null,null,100]
["GWH(18)KG-K3DNA5G/I \"Change\"","GREE","Gree GWH(18)KG-K3DNA5G/I \"Change\" (Внутренний блок)","Внутренний блок",8365.4,"https://images.ua.prom.st/2177531798_w640_h640_vnutrennij-blok-multisplit-sistemy.jpg","https://ventbazar.ua/images/products/111104/Gree_GWH09KF-K3DNA5G.jpg","https://starclimate.com.ua/assets/frontend/img/Gree_products/Gree,P20ChangePro.jpg.pagespeed.ce.Vg3z0WW5Je.jpg",null,"- ","CHANGE","до 50","Китай","-","инвертор","18  тыс. БTE/ч","A+","R410A","-15","Gree",null,null,null,"Нет","Белый","2 года",null,null,"теплый пуск, авторазморозка, таймер, сохранение настроек, самодиагностика, самоочистка, автоматический перезапуск, пульт с термометром (i feel), дисплей на внутреннем блоке","для комнаты; для кухни; для детской; для квартиры; для дома; для магазина; ",null,null,null,null,null,null,"плазменный фильтр (электростатический)",null,null,null,null,null,null,null,null,null,null,null,null,null,8365.4,null,null,null,null,null,null,100]
["GWH(07)KF-K3DNA5G/I \"Change\"","GREE","Gree GWH(07)KF-K3DNA5G/I \"Change\" (Внутренний блок)","Внутренний блок",5983.2,"https://images.ua.prom.st/2177531798_w640_h640_vnutrennij-blok-multisplit-sistemy.jpg","https://ventbazar.ua/images/products/111104/Gree_GWH09KF-K3DNA5G.jpg","https://starclimate.com.ua/assets/frontend/img/Gree_products/Gree,P20ChangePro.jpg.pagespeed.ce.Vg3z0WW5Je.jpg",null,"- ","CHANGE","до 20","Китай","-","обычный","7  тыс. БTE/ч","A+","R410A","-7","Gree",null,null,null,"Нет","Белый","2 года",null,null,"теплый пуск, авторазморозка, таймер, сохранение настроек, самодиагностика, самоочистка, автоматический перезапуск, пульт с термометром (i feel), дисплей на внутреннем блоке","для комнаты; для кухни; для детской; для квартиры; для дома; для магазина; ",null,null,null,null,null,null,"плазменный фильтр (электростатический)",null,null,null,null,null,null,null,null,null,null,null,null,null,5983.2,null,null,null,null,null,null,100]
["GWH(09)KF-K3DNA5G/I \"Change\"","GREE","Gree GWH(09)KF-K3DNA5G/I \"Change\" (Внутренний блок)","Внутренний блок",6454.0999999999995,"https://images.ua.prom.st/2177531798_w640_h640_vnutrennij-blok-multisplit-sistemy.jpg","https://ventbazar.ua/images/products/111104/Gree_GWH09KF-K3DNA5G.jpg","https://starclimate.com.ua/assets/frontend/img/Gree_products/Gree,P20ChangePro.jpg.pagespeed.ce.Vg3z0WW5Je.jpg",null,"- ","CHANGE","до 25","Китай","-","обычный","9  тыс. БTE/ч","A+","R410A","-7","Gree",null,null,null,"Нет","Белый","2 года",null,null,"теплый пуск, авторазморозка, таймер, сохранение настроек, самодиагностика, самоочистка, автоматический перезапуск, пульт с термометром (i feel), дисплей на внутреннем блоке","для комнаты; для кухни; для детской; для квартиры; для дома; для магазина; ",null,null,null,null,null,null,"плазменный фильтр (электростатический)",null,null,null,null,null,null,null,null,null,null,null,null,null,6454.0999999999995,null,null,null,null,null,null,100]
["GWH(12)QB-K6DNB6I/I","GREE","Gree GWH(12)QB-K6DNB6I/I (Внутренний блок)","Внутренний блок",7645.2,"https://gree-store.com.ua/images/files/3_20022020092442_1.jpeg","https://gree-store.com.ua/images/files/3_1573_20022020091643_1.jpeg",null,null,"- ","SMART","до 35","Китай","-","инвертор","12  тыс. БTE/ч","A++","R32","-20","Gree",null,null,null,"Нет","Белый","2 года","713 x 270 x 195 ",null,"теплый пуск, авторазморозка, таймер, сохранение настроек, самодиагностика, самоочистка, автоматический перезапуск, пульт с термометром (i feel), дисплей на внутреннем блоке","для комнаты; для кухни; для детской; для квартиры; для дома; для магазина; ",null,null,null,null,null,null,"плазменный фильтр (электростатический)",null,null,null,null,null,null,null,null,null,null,null,null,null,7645.2,null,null,null,null,null,null,100]
["GWH12QC-K3DNB6G/I Smart ","GREE","Gree GWH12QC-K3DNB6G/I Smart  (Внутренний блок)","Внутренний блок",7645.2,"https://i.allo.ua/media/catalog/product/cache/1/image/710x600/602f0fa2c1f0d1ba5e241f914e856ff9/g/r/gree_gwh09qb-k3dnb6g_1.jpg","https://i.allo.ua/media/catalog/product/cache/1/image/710x600/602f0fa2c1f0d1ba5e241f914e856ff9/g/r/gree_gwh24qe-k3dnb6g_2_2.jpg","https://i.ytimg.com/vi/K6QTPtu_c3c/maxresdefault.jpg",null,"- ","SMART","до 35","Китай","-","инвертор","12  тыс. БTE/ч","A++","R410A","-15","Gree",null,null,null,"WiFi","Белый","2 года","970×300×224",null,null,"для комнаты; для кухни; для детской; для квартиры; для дома; для магазина; ",null,null,null,null,null,null,0,null,null,null,null,null,null,null,null,null,null,null,null,null,7645.2,null,null,null,null,null,null,100]
["GWH(18)QD-K6DNB6B/I","GREE","Gree GWH(18)QD-K6DNB6B/I (Внутренний блок)","Внутренний блок",9334.9,"https://gree-store.com.ua/images/files/3_20022020092442_1.jpeg","https://gree-store.com.ua/images/files/3_1573_20022020091643_1.jpeg",null,null,"- ","SMART","до 50","Китай","-","инвертор","18  тыс. БTE/ч","A++","R32","-20","Gree",null,null,null,"WiFi","Белый","2 года","713 x 270 x 195 ",null,"теплый пуск, таймер, сохранение настроек, самодиагностика","для комнаты; для кухни; для детской; для квартиры; для дома; для магазина; ",null,null,null,null,null,null,"плазменный фильтр (электростатический)",null,null,null,null,null,null,null,null,null,null,null,null,null,9334.9,null,null,null,null,null,null,100]
["MUSE on/off"]
["GWH07AFA-K3NNA1A","GREE","Кондиционер GREE GWH07AFA-K3NNA1A","Кондиционеры",{"$f":"AX36*$BB$1","v":0},"https://gree-shop.net/wp-content/uploads/2021/02/Gree-Muse.jpg",null,null,null,"- ","MUSE","до 20","Гонконг",null,"обычный","7  тыс. БTE/ч","A+","R410A",-7,"Gree","Холод: 0,7 / Тепло: 0,651",null,"Да",null,"Белый",null,"744x256x185","720x428x310",null,null,null,null,null,null,null,null,null,null,null,null,null,null,null,null,null,null,null,null,null,403,null,294]
["GWH09AFA-K3NNA1A","GREE","Кондиционер GREE GWH09AFA-K3NNA1A","Кондиционеры",0,null,null,null,null,"- ","MUSE","до 25","Гонконг",null,"обычный","9  тыс. БTE/ч","A+","R410A",-7,"Gree","Холод: 0,794 / Тепло: 0,734",null,"Да",null,"Белый",null,"744x256x185","720x428x310",null,null,null,null,null,null,null,null,null,null,null,null,null,null,null,null,null,null,null,null,null,437,null,319]
["GWH12AFB-K3NNA1A","GREE","Кондиционер GREE GWH12AFB-K3NNA1A","Кондиционеры",0,null,null,null,null,"- ","MUSE","до 35","Гонконг",null,"обычный","12  тыс. БTE/ч","A+","R410A",-7,"Gree","Холод: 1,012 / Тепло: 0,941",null,"Да",null,"Белый",null,"819x256x185","776х540х320",null,null,null,null,null,null,null,null,null,null,null,null,null,null,null,null,null,null,null,null,null,493,null,360]
["GWH18AFC-K3NNA1A","GREE","Кондиционер GREE GWH18AFC-K3NNA1A","Кондиционеры",0,null,null,null,null,"- ","MUSE","до 50","Гонконг",null,"обычный","18  тыс. БTE/ч","A+","R410A",-7,"Gree","Холод: 1,495 / Тепло: 1,468",null,"Да",null,"Белый",null,"888x284x212","848х540х320",null,null,null,null,null,null,null,null,null,null,null,null,null,null,null,null,null,null,null,null,null,778,null,568]
["GWH24AFD-K3NNA1A","GREE","Кондиционер GREE GWH24AFD-K3NNA1A","Кондиционеры",0,null,null,null,null,"- ","MUSE","до 75","Гонконг",null,"обычный","24 тыс. БTE/ч","A+","R410A",-7,"Gree","Холод: 1,915 / Тепло: 1,856",null,"Да",null,"Белый",null,"1013x307x221","913х680х378",null,null,null,null,null,null,null,null,null,null,null,null,null,null,null,null,null,null,null,null,null,1019,null,744]
["GWH28AFE-K3NNA1B","GREE","Кондиционер GREE GWH28AFE-K3NNA1B","Кондиционеры",0,null,null,null,null,"- ","MUSE","до 85","Гонконг",null,"обычный","28 тыс. БTE/ч","A+","R410A",-7,"Gree","Холод: 2,846 / Тепло: 2,647",null,"Да",null,"Белый",null,"1122x329x247","913х680х378",null,null,null,null,null,null,null,null,null,null,null,null,null,null,null,null,null,null,null,null,null,1187,null,867]
["Bora DC inverter (Cold Plazma)  "]
["GWH07AAB-K3DNA5A","GREE","Кондиционер GREE GWH07AAB-K3DNA5A  ","Кондиционеры",{"$f":"AX43*$BB$1","v":0},"https://gree-shop.net/wp-content/uploads/2021/02/Gree-Bora-Inverter-%D1%84%D1%80%D0%B5%D0%BE%D0%BD-R410%D0%90.jpg",null,null,null,"- ","Bora","до 20","Гонконг",null,"инвертор","7  тыс. БTE/ч","A+","R410A","-15","Gree","Холод: 0,685 / Тепло: 0,637","Холод: 0,685 / Тепло: 0,637","Холод: 0,685 / Тепло: 0,637",null,"Белый",null,"773x250x185","720x428x310",null,null,null,null,null,null,null,null,null,null,null,null,null,null,null,null,null,null,null,null,null,488,null,356]
["GWH09AAB-K3DNA5A","GREE","Кондиционер GREE GWH09AAB-K3DNA5A  ","Кондиционеры",{"$f":"AX44*$BB$1","v":0},null,null,null,null,"- ","Bora","до 25","Гонконг",null,"инвертор","9  тыс. БTE/ч","A+","R410A","-15","Gree","Холод: 0,79 / Тепло: 0,65",null,"Да",null,"Белый",null,"773x250x185","776x540x320",null,null,null,null,null,null,null,null,null,null,null,null,null,null,null,null,null,null,null,null,null,585,null,427]
["GWH12AAB-K3DNA5A","GREE","Кондиционер GREE GWH12AAB-K3DNA5A  ","Кондиционеры",{"$f":"AX45*$BB$1","v":0},null,null,null,null,"- ","Bora","до 35","Гонконг",null,"инвертор","12  тыс. БTE/ч","A+","R410A","-15","Gree","Холод: 0,997 / Тепло: 0,942",null,"Да",null,"Белый",null,"773x250x185","848x596x320",null,null,null,null,null,null,null,null,null,null,null,null,null,null,null,null,null,null,null,null,null,659,null,481]
["GWH18AAD-K3DNA5E","GREE","Кондиционер GREE GWH18AAD-K3DNA5E  ","Кондиционеры",{"$f":"AX46*$BB$1","v":0},null,null,null,null,"- ","Bora","до 50","Гонконг",null,"инвертор","18  тыс. БTE/ч","A+","R410A","-15","Gree","Холод: 1,43 / Тепло: 1,38",null,"Да",null,"Белый",null,"970x300x225","842x596x320",null,null,null,null,null,null,null,null,null,null,null,null,null,null,null,null,null,null,null,null,null,993,null,725]
["GWH24AAD-K3DNA5A","GREE","Кондиционер GREE GWH24AAD-K3DNA5A  ","Кондиционеры",{"$f":"AX47*$BB$1","v":0},null,null,null,null,"- ","Bora","до 75","Гонконг",null,"инвертор","24 тыс. БTE/ч","A+","R410A","-15","Gree","Холод: 2 / Тепло: 1,9",null,"Да",null,"Белый",null,"955x700x396","842x596x320",null,null,null,null,null,null,null,null,null,null,null,null,null,null,null,null,null,null,null,null,null,1106,null,807]
["Bora DC inverter + Wi-Fi (Cold Plazma)  ",null,null,null,null,null,null,null,null,"- "]
["GWH07AAB-K3DNA5A (Wi-Fi)","GREE","Кондиционер GREE GWH07AAB-K3DNA5A (Wi-Fi)","Кондиционеры",{"$f":"AX49*$BB$1","v":0},null,null,null,null,"- ","Bora","до 20","Гонконг",null,"инвертор","7  тыс. БTE/ч","A+","R410A","-15","Gree","Холод: 0,685 / Тепло: 0,637",null,"Да",null,"Белый",null,"773x250x185","720x428x310",null,null,null,null,null,null,null,null,null,null,null,null,null,null,null,null,null,null,null,null,null,501,null,366]
["GWH09AAB-K3DNA5A (Wi-Fi)","GREE","Кондиционер GREE GWH09AAB-K3DNA5A (Wi-Fi)","Кондиционеры",{"$f":"AX50*$BB$1","v":0},null,null,null,null,"- ","Bora","до 25","Гонконг",null,"инвертор","9  тыс. БTE/ч","A+","R410A","-15","Gree","Холод: 0,79 / Тепло: 0,65",null,"Да",null,"Белый",null,"773x250x185","776x540x320",null,null,null,null,null,null,null,null,null,null,null,null,null,null,null,null,null,null,null,null,null,605,null,442]
["GWH12AAB-K3DNA5A (Wi-Fi)","GREE","Кондиционер GREE GWH12AAB-K3DNA5A (Wi-Fi)","Кондиционеры",{"$f":"AX51*$BB$1","v":0},null,null,null,null,"- ","Bora","до 35","Гонконг",null,"инвертор","12  тыс. БTE/ч","A+","R410A","-15","Gree","Холод: 0,997 / Тепло: 0,942",null,"Да",null,"Белый",null,"773x250x185","848x596x320",null,null,null,null,null,null,null,null,null,null,null,null,null,null,null,null,null,null,null,null,null,676,null,493]
["GWH18AAD-K3DNA5E (Wi-Fi)","GREE","Кондиционер GREE GWH18AAD-K3DNA5E (Wi-Fi)","Кондиционеры",{"$f":"AX52*$BB$1","v":0},null,null,null,null,"- ","Bora","до 50","Гонконг",null,"инвертор","18  тыс. БTE/ч","A+","R410A","-15","Gree","Холод: 1,43 / Тепло: 1,38",null,"Да",null,"Белый",null,"970x300x225","842x596x320",null,null,null,null,null,null,null,null,null,null,null,null,null,null,null,null,null,null,null,null,null,1014,null,740]
["GWH24AAD-K3DNA5A (Wi-Fi)","GREE","Кондиционер GREE GWH24AAD-K3DNA5A (Wi-Fi)","Кондиционеры",{"$f":"AX53*$BB$1","v":0},null,null,null,null,"- ","Bora","до 75","Гонконг",null,"инвертор","24 тыс. БTE/ч","A+","R410A","-15","Gree","Холод: 2 / Тепло: 1,9",null,"Да",null,"Белый",null,"955x700x396","842x596x320",null,null,null,null,null,null,null,null,null,null,null,null,null,null,null,null,null,null,null,null,null,1123,null,820]
[null,null,null,null,null,null,null,null,null,"- "]
["Wi-Fi адаптер Gree",null,null,null,null,null,null,null,null,"- ",null,null,null,null,null,null,null,null,null,null,null,null,null,null,null,null,null,null,null,null,null,null,null,null,null,null,null,null,null,null,null,null,null,null,null,null,null,null,null,50,null,15]
[null,null,null,null,null,null,null,null,null,"- "]
["PRAKTIK Pro DC inverter (Cold Plazma)"]
["GWH07QB-K3DNA2С","GREE","Кондиционер GREE GWH07QB-K3DNA2С","Кондиционеры",{"$f":"AX58*$BB$1","v":0},null,null,null,null,"- ","PRAKTIK Pro","до 20","Гонконг",null,"инвертор","7  тыс. БTE/ч","A+","R410A","-15","Gree","Холод: 0,685 / Тепло: 0,637",null,"Да",null,"Белый",null,"773x250x185","720x428x310",null,null,null,null,null,null,null,null,null,null,null,null,null,null,null,null,null,null,null,null,null,505,null,369]
["GWH09QB-K3DNA2G","GREE","Кондиционер GREE GWH09QB-K3DNA2G","Кондиционеры",{"$f":"AX59*$BB$1","v":0},null,null,null,null,"- ","PRAKTIK Pro","до 25","Гонконг",null,"инвертор","9  тыс. БTE/ч","A+","R410A","-15","Gree",0.82,null,"Да",null,"Белый",null,"790x200x275","710x318x550",null,null,null,null,null,null,null,null,null,null,null,null,null,null,null,null,null,null,null,null,null,651,null,475]
["GWH12QC-K3DNA2G","GREE","Кондиционер GREE GWH12QC-K3DNA2G","Кондиционеры",{"$f":"AX60*$BB$1","v":0},null,null,null,null,"- ","PRAKTIK Pro","до 35","Гонконг",null,"инвертор","12  тыс. БTE/ч","A+","R410A","-15","Gree",1.0900000000000001,null,"Да",null,"Белый",null,"845x209x289","710x318x550",null,null,null,null,null,null,null,null,null,null,null,null,null,null,null,null,null,null,null,null,null,732,null,534]
["Cooper&Hunter"]
["Не инверторные модели"]
["Prima Plus"]
["СH-S07XN7","Cooper&Hunter","Кондиционер Cooper&Hunter СH-S07XN7","Кондиционеры",{"$f":"AY64","v":9340},"https://cooper-hunter.net.ua/wp-content/uploads/2020/03/%D0%A1%D0%BF%D0%BB%D0%B8%D1%82-%D1%81%D0%B8%D1%81%D1%82%D0%B5%D0%BC%D0%B0-Prima-Plus-CooperHunter.jpg","https://images.ua.prom.st/1756589742_konditsioner-cooper-and-hunter-ch-s07xn7.jpg","https://www.куперхантер.com/wp-content/uploads/2016/08/ch-s12lx7.jpg","<p><span style=\"color: rgb(85, 85, 85); font-family: Roboto; font-size: 16px;\">Работа на обогрев при <b>-7°C;</b> Класс А; Turbo режим; «CH SMART-ION Filter»; Низкий уровень шума</span><br></p>","- ","Prima Plus","до 20","Китай",null,"обычный",null,null,null,null,null,null,null,null,null,"Белый",null,null,null,null,null,null,null,null,null,null,null,null,null,null,null,null,null,null,null,null,null,null,null,null,{"$f":"AY64/$BB$1","v":{"$error":"#DIV/0!"}},9340,264]
["CH-S09XN7","Cooper&Hunter","Кондиционер Cooper&Hunter СH-S09XN7","Кондиционеры",10150,"https://cooper-hunter.net.ua/wp-content/uploads/2020/03/%D0%A1%D0%BF%D0%BB%D0%B8%D1%82-%D1%81%D0%B8%D1%81%D1%82%D0%B5%D0%BC%D0%B0-Prima-Plus-CooperHunter.jpg","https://images.ua.prom.st/1756589742_konditsioner-cooper-and-hunter-ch-s07xn7.jpg","https://www.куперхантер.com/wp-content/uploads/2016/08/ch-s12lx7.jpg","<p><span style=\"color: rgb(85, 85, 85); font-family: Roboto; font-size: 16px;\">Работа на обогрев при <b>-7°C;</b> Класс А; Turbo режим; «CH SMART-ION Filter»; Низкий уровень шума</span><br></p>","- ","Prima Plus","до 25","Китай",null,"обычный",null,null,null,null,null,null,null,null,null,"Белый",null,null,null,null,null,null,null,null,null,null,null,null,null,null,null,null,null,null,null,null,null,null,null,null,{"$error":"#DIV/0!"},10150,285]
["СH-S12XN7","Cooper&Hunter","Кондиционер Cooper&Hunter СH-S12XN7","Кондиционеры",11950,"https://cooper-hunter.net.ua/wp-content/uploads/2020/03/%D0%A1%D0%BF%D0%BB%D0%B8%D1%82-%D1%81%D0%B8%D1%81%D1%82%D0%B5%D0%BC%D0%B0-Prima-Plus-CooperHunter.jpg","https://images.ua.prom.st/1756589742_konditsioner-cooper-and-hunter-ch-s07xn7.jpg","https://www.куперхантер.com/wp-content/uploads/2016/08/ch-s12lx7.jpg","<p><span style=\"color: rgb(85, 85, 85); font-family: Roboto; font-size: 16px;\">Работа на обогрев при <b>-7°C;</b> Класс А; Turbo режим; «CH SMART-ION Filter»; Низкий уровень шума</span><br></p>","- ","Prima Plus","до 35","Китай",null,"обычный",null,null,null,null,null,null,null,null,null,"Белый",null,null,null,null,null,null,null,null,null,null,null,null,null,null,null,null,null,null,null,null,null,null,null,null,{"$error":"#DIV/0!"},11950,338]
["CH-S18XN7","Cooper&Hunter","Кондиционер Cooper&Hunter CH-S18XN7","Кондиционеры",19460,"https://cooper-hunter.net.ua/wp-content/uploads/2020/03/%D0%A1%D0%BF%D0%BB%D0%B8%D1%82-%D1%81%D0%B8%D1%81%D1%82%D0%B5%D0%BC%D0%B0-Prima-Plus-CooperHunter.jpg","https://images.ua.prom.st/1756589742_konditsioner-cooper-and-hunter-ch-s07xn7.jpg","https://www.куперхантер.com/wp-content/uploads/2016/08/ch-s12lx7.jpg","<p><span style=\"color: rgb(85, 85, 85); font-family: Roboto; font-size: 16px;\">Работа на обогрев при <b>-7°C;</b> Класс А; Turbo режим; «CH SMART-ION Filter»; Низкий уровень шума</span><br></p>","- ","Prima Plus","до 50","Китай",null,"обычный",null,null,null,null,null,null,null,null,null,"Белый",null,null,null,null,null,null,null,null,null,null,null,null,null,null,null,null,null,null,null,null,null,null,null,null,{"$error":"#DIV/0!"},19460,548]
["CH-S24XN7","Cooper&Hunter","Кондиционер Cooper&Hunter CH-S24XN7","Кондиционеры",24940,"https://cooper-hunter.net.ua/wp-content/uploads/2020/03/%D0%A1%D0%BF%D0%BB%D0%B8%D1%82-%D1%81%D0%B8%D1%81%D1%82%D0%B5%D0%BC%D0%B0-Prima-Plus-CooperHunter.jpg","https://images.ua.prom.st/1756589742_konditsioner-cooper-and-hunter-ch-s07xn7.jpg","https://www.куперхантер.com/wp-content/uploads/2016/08/ch-s12lx7.jpg","<p><span style=\"color: rgb(85, 85, 85); font-family: Roboto; font-size: 16px;\">Работа на обогрев при <b>-7°C;</b> Класс А; Turbo режим; «CH SMART-ION Filter»; Низкий уровень шума</span><br></p>","- ","Prima Plus","до 75","Китай",null,"обычный",null,null,null,null,null,null,null,null,null,"Белый",null,null,null,null,null,null,null,null,null,null,null,null,null,null,null,null,null,null,null,null,null,null,null,null,{"$error":"#DIV/0!"},24940,710]
["CH-S30XN7","Cooper&Hunter","Кондиционер Cooper&Hunter CH-S30XN7","Кондиционеры",29730,"https://cooper-hunter.net.ua/wp-content/uploads/2020/03/%D0%A1%D0%BF%D0%BB%D0%B8%D1%82-%D1%81%D0%B8%D1%81%D1%82%D0%B5%D0%BC%D0%B0-Prima-Plus-CooperHunter.jpg","https://images.ua.prom.st/1756589742_konditsioner-cooper-and-hunter-ch-s07xn7.jpg","https://www.куперхантер.com/wp-content/uploads/2016/08/ch-s12lx7.jpg","<p><span style=\"color: rgb(85, 85, 85); font-family: Roboto; font-size: 16px;\">Работа на обогрев при <b>-7°C;</b> Класс А; Turbo режим; «CH SMART-ION Filter»; Низкий уровень шума</span><br></p>","- ","Prima Plus",null,"Китай",null,"обычный",null,null,null,null,null,null,null,null,null,"Белый",null,null,null,null,null,null,null,null,null,null,null,null,null,null,null,null,null,null,null,null,null,null,null,null,{"$error":"#DIV/0!"},29730,847]
["CH-S36XL9","Cooper&Hunter","Кондиционер Cooper&Hunter CH-S36XL9","Кондиционеры",45560,"https://cooper-hunter.net.ua/wp-content/uploads/2020/03/%D0%A1%D0%BF%D0%BB%D0%B8%D1%82-%D1%81%D0%B8%D1%81%D1%82%D0%B5%D0%BC%D0%B0-Prima-Plus-CooperHunter.jpg","https://images.ua.prom.st/1756589742_konditsioner-cooper-and-hunter-ch-s07xn7.jpg","https://www.куперхантер.com/wp-content/uploads/2016/08/ch-s12lx7.jpg","<p><span style=\"color: rgb(85, 85, 85); font-family: Roboto; font-size: 16px;\">Работа на обогрев при <b>-7°C;</b> Класс А; Turbo режим; «CH SMART-ION Filter»; Низкий уровень шума</span><br></p>","- ","Prima Plus",null,"Китай",null,"обычный",null,null,null,null,null,null,null,null,null,"Белый",null,null,null,null,null,null,null,null,null,null,null,null,null,null,null,null,null,null,null,null,null,null,null,null,{"$error":"#DIV/0!"},45560,1290]
["AIR MASTER EVO"]
["CH-S07XP9","Cooper&Hunter","Кондиционер Cooper&Hunter CH-S07XP9","Кондиционеры",{"$f":"AY72","v":9340},"https://cooper-hunter.net.ua/wp-content/uploads/2020/03/%D0%A1%D0%BF%D0%BB%D0%B8%D1%82-%D1%81%D0%B8%D1%81%D1%82%D0%B5%D0%BC%D0%B0-Air-Master-Evo-1.jpg","https://www.cooperhunter.com.ua/files/2020/01_05/21_20/563x563xu_files_store_4_64.jpg.pagespeed.ic.x5gNhrutcV.jpg","https://i.ytimg.com/vi/T1HL1fSuBiI/maxresdefault.jpg","<p><span style=\"color: rgb(85, 85, 85); font-family: Roboto; font-size: 16px;\">Работа на обогрев при <b>-7°C;</b> Класс А; Turbo режим; «CH SMART-ION Filter»; Низкий уровень шума</span><br></p>","- ","AIR MASTER EVO","до 20","Китай",null,"обычный",null,null,null,null,null,null,null,null,null,"Белый",null,null,null,null,null,null,null,null,null,null,null,null,null,null,null,null,null,null,null,null,null,null,null,null,{"$f":"AY72/$BB$1","v":{"$error":"#DIV/0!"}},9340,264]
["CH-S09XP9","Cooper&Hunter","Кондиционер Cooper&Hunter CH-S09XP9","Кондиционеры",10150,"https://cooper-hunter.net.ua/wp-content/uploads/2020/03/%D0%A1%D0%BF%D0%BB%D0%B8%D1%82-%D1%81%D0%B8%D1%81%D1%82%D0%B5%D0%BC%D0%B0-Air-Master-Evo-1.jpg","https://www.cooperhunter.com.ua/files/2020/01_05/21_20/563x563xu_files_store_4_64.jpg.pagespeed.ic.x5gNhrutcV.jpg","https://i.ytimg.com/vi/T1HL1fSuBiI/maxresdefault.jpg","<p><span style=\"color: rgb(85, 85, 85); font-family: Roboto; font-size: 16px;\">Работа на обогрев при <b>-7°C;</b> Класс А; Turbo режим; «CH SMART-ION Filter»; Низкий уровень шума</span><br></p>","- ","AIR MASTER EVO","до 25","Китай",null,"обычный",null,null,null,null,null,null,null,null,null,"Белый",null,null,null,null,null,null,null,null,null,null,null,null,null,null,null,null,null,null,null,null,null,null,null,null,{"$error":"#DIV/0!"},10150,285]
["CH-S12XP9","Cooper&Hunter","Кондиционер Cooper&Hunter CH-S12XP9","Кондиционеры",11950,"https://cooper-hunter.net.ua/wp-content/uploads/2020/03/%D0%A1%D0%BF%D0%BB%D0%B8%D1%82-%D1%81%D0%B8%D1%81%D1%82%D0%B5%D0%BC%D0%B0-Air-Master-Evo-1.jpg","https://www.cooperhunter.com.ua/files/2020/01_05/21_20/563x563xu_files_store_4_64.jpg.pagespeed.ic.x5gNhrutcV.jpg","https://i.ytimg.com/vi/T1HL1fSuBiI/maxresdefault.jpg","<p><span style=\"color: rgb(85, 85, 85); font-family: Roboto; font-size: 16px;\">Работа на обогрев при <b>-7°C;</b> Класс А; Turbo режим; «CH SMART-ION Filter»; Низкий уровень шума</span><br></p>","- ","AIR MASTER EVO","до 35","Китай",null,"обычный",null,null,null,null,null,null,null,null,null,"Белый",null,null,null,null,null,null,null,null,null,null,null,null,null,null,null,null,null,null,null,null,null,null,null,null,{"$error":"#DIV/0!"},11950,338]
["CH-S18XP9","Cooper&Hunter","Кондиционер Cooper&Hunter CH-S18XP9","Кондиционеры",19460,"https://cooper-hunter.net.ua/wp-content/uploads/2020/03/%D0%A1%D0%BF%D0%BB%D0%B8%D1%82-%D1%81%D0%B8%D1%81%D1%82%D0%B5%D0%BC%D0%B0-Air-Master-Evo-1.jpg","https://www.cooperhunter.com.ua/files/2020/01_05/21_20/563x563xu_files_store_4_64.jpg.pagespeed.ic.x5gNhrutcV.jpg","https://i.ytimg.com/vi/T1HL1fSuBiI/maxresdefault.jpg","<p><span style=\"color: rgb(85, 85, 85); font-family: Roboto; font-size: 16px;\">Работа на обогрев при <b>-7°C;</b> Класс А; Turbo режим; «CH SMART-ION Filter»; Низкий уровень шума</span><br></p>","- ","AIR MASTER EVO","до 50","Китай",null,"обычный",null,null,null,null,null,null,null,null,null,"Белый",null,null,null,null,null,null,null,null,null,null,null,null,null,null,null,null,null,null,null,null,null,null,null,null,{"$error":"#DIV/0!"},19460,548]
["CH-S24XP9","Cooper&Hunter","Кондиционер Cooper&Hunter CH-S24XP9","Кондиционеры",24940,"https://cooper-hunter.net.ua/wp-content/uploads/2020/03/%D0%A1%D0%BF%D0%BB%D0%B8%D1%82-%D1%81%D0%B8%D1%81%D1%82%D0%B5%D0%BC%D0%B0-Air-Master-Evo-1.jpg","https://www.cooperhunter.com.ua/files/2020/01_05/21_20/563x563xu_files_store_4_64.jpg.pagespeed.ic.x5gNhrutcV.jpg","https://i.ytimg.com/vi/T1HL1fSuBiI/maxresdefault.jpg","<p><span style=\"color: rgb(85, 85, 85); font-family: Roboto; font-size: 16px;\">Работа на обогрев при <b>-7°C;</b> Класс А; Turbo режим; «CH SMART-ION Filter»; Низкий уровень шума</span><br></p>","- ","AIR MASTER EVO","до 75","Китай",null,"обычный",null,null,null,null,null,null,null,null,null,"Белый",null,null,null,null,null,null,null,null,null,null,null,null,null,null,null,null,null,null,null,null,null,null,null,null,{"$error":"#DIV/0!"},24940,710]
["CH-S30XP9","Cooper&Hunter","Кондиционер Cooper&Hunter CH-S30XP9","Кондиционеры",29730,"https://cooper-hunter.net.ua/wp-content/uploads/2020/03/%D0%A1%D0%BF%D0%BB%D0%B8%D1%82-%D1%81%D0%B8%D1%81%D1%82%D0%B5%D0%BC%D0%B0-Air-Master-Evo-1.jpg","https://www.cooperhunter.com.ua/files/2020/01_05/21_20/563x563xu_files_store_4_64.jpg.pagespeed.ic.x5gNhrutcV.jpg","https://i.ytimg.com/vi/T1HL1fSuBiI/maxresdefault.jpg","<p><span style=\"color: rgb(85, 85, 85); font-family: Roboto; font-size: 16px;\">Работа на обогрев при <b>-7°C;</b> Класс А; Turbo режим; «CH SMART-ION Filter»; Низкий уровень шума</span><br></p>","- ","AIR MASTER EVO",null,"Китай",null,"обычный",null,null,null,null,null,null,null,null,null,"Белый",null,null,null,null,null,null,null,null,null,null,null,null,null,null,null,null,null,null,null,null,null,null,null,null,{"$error":"#DIV/0!"},29730,847]
["Инверторные модели"]
["WINNER"]
["CH-S07FTX5","Cooper&Hunter","Кондиционер Cooper&Hunter CH-S07FTX5","Кондиционеры",{"$f":"AY80","v":13340},"https://cooper-hunter.net.ua/wp-content/uploads/2020/03/%D0%A1%D0%BF%D0%BB%D0%B8%D1%82-%D1%81%D0%B8%D1%81%D1%82%D0%B5%D0%BC%D0%B0-Winner-CH.jpg","https://cooper-hunter.net.ua/wp-content/uploads/2020/03/%D0%A1%D0%BF%D0%BB%D0%B8%D1%82-%D1%81%D0%B8%D1%81%D1%82%D0%B5%D0%BC%D0%B0-Winner-CH.jpg","https://mzimg.com/big/m1/g8gjvhtggm1.jpg","<p><span style=\"color: rgb(85, 85, 85); font-family: Roboto; font-size: 16px;\">Работа на обогрев при -15°C; Класс А++; Функция «I FEEL»; Технология инверторов от DAIKIN ;«CH SMART-ION Filter»</span><br></p>","- ","WINNER","до 20","Китай",null,"инвертор",null,null,null,null,null,null,null,null,null,"Белый",null,null,null,null,null,null,null,null,null,null,null,null,null,null,null,null,null,null,null,null,null,null,null,null,{"$f":"AY80/$BB$1","v":{"$error":"#DIV/0!"}},13340,379]
["CH-S09FTX5","Cooper&Hunter","Кондиционер Cooper&Hunter CH-S09FTX5","Кондиционеры",{"$f":"AY81","v":14590},"https://cooper-hunter.net.ua/wp-content/uploads/2020/03/%D0%A1%D0%BF%D0%BB%D0%B8%D1%82-%D1%81%D0%B8%D1%81%D1%82%D0%B5%D0%BC%D0%B0-Winner-CH.jpg","https://cooper-hunter.net.ua/wp-content/uploads/2020/03/%D0%A1%D0%BF%D0%BB%D0%B8%D1%82-%D1%81%D0%B8%D1%81%D1%82%D0%B5%D0%BC%D0%B0-Winner-CH.jpg","https://mzimg.com/big/m1/g8gjvhtggm1.jpg","<p><span style=\"color: rgb(85, 85, 85); font-family: Roboto; font-size: 16px;\">Работа на обогрев при -15°C; Класс А++; Функция «I FEEL»; Технология инверторов от DAIKIN ;«CH SMART-ION Filter»</span><br></p>","- ","WINNER","до 25","Китай",null,"инвертор",null,null,null,null,null,null,null,null,null,"Белый",null,null,null,null,null,null,null,null,null,null,null,null,null,null,null,null,null,null,null,null,null,null,null,null,{"$f":"AY81/$BB$1","v":{"$error":"#DIV/0!"}},14590,414]
["CH-S12FTX5","Cooper&Hunter","Кондиционер Cooper&Hunter CH-S12FTX5","Кондиционеры",{"$f":"AY82","v":15890},"https://cooper-hunter.net.ua/wp-content/uploads/2020/03/%D0%A1%D0%BF%D0%BB%D0%B8%D1%82-%D1%81%D0%B8%D1%81%D1%82%D0%B5%D0%BC%D0%B0-Winner-CH.jpg","https://cooper-hunter.net.ua/wp-content/uploads/2020/03/%D0%A1%D0%BF%D0%BB%D0%B8%D1%82-%D1%81%D0%B8%D1%81%D1%82%D0%B5%D0%BC%D0%B0-Winner-CH.jpg","https://mzimg.com/big/m1/g8gjvhtggm1.jpg","<p><span style=\"color: rgb(85, 85, 85); font-family: Roboto; font-size: 16px;\">Работа на обогрев при -15°C; Класс А++; Функция «I FEEL»; Технология инверторов от DAIKIN ;«CH SMART-ION Filter»</span><br></p>","- ","WINNER","до 35","Китай",null,"инвертор",null,null,null,null,null,null,null,null,null,"Белый",null,null,null,null,null,null,null,null,null,null,null,null,null,null,null,null,null,null,null,null,null,null,null,null,{"$f":"AY82/$BB$1","v":{"$error":"#DIV/0!"}},15890,455]
["CH-S18FTX5","Cooper&Hunter","Кондиционер Cooper&Hunter CH-S18FTX5","Кондиционеры",{"$f":"AY83","v":24850},"https://cooper-hunter.net.ua/wp-content/uploads/2020/03/%D0%A1%D0%BF%D0%BB%D0%B8%D1%82-%D1%81%D0%B8%D1%81%D1%82%D0%B5%D0%BC%D0%B0-Winner-CH.jpg","https://cooper-hunter.net.ua/wp-content/uploads/2020/03/%D0%A1%D0%BF%D0%BB%D0%B8%D1%82-%D1%81%D0%B8%D1%81%D1%82%D0%B5%D0%BC%D0%B0-Winner-CH.jpg","https://mzimg.com/big/m1/g8gjvhtggm1.jpg","<p><span style=\"color: rgb(85, 85, 85); font-family: Roboto; font-size: 16px;\">Работа на обогрев при -15°C; Класс А++; Функция «I FEEL»; Технология инверторов от DAIKIN ;«CH SMART-ION Filter»</span><br></p>","- ","WINNER","до 50","Китай",null,"инвертор",null,null,null,null,null,null,null,null,null,"Белый",null,null,null,null,null,null,null,null,null,null,null,null,null,null,null,null,null,null,null,null,null,null,null,null,{"$f":"AY83/$BB$1","v":{"$error":"#DIV/0!"}},24850,701]
["CH-S24FTX5","Cooper&Hunter","Кондиционер Cooper&Hunter CH-S24FTX5","Кондиционеры",{"$f":"AY84","v":28740},"https://cooper-hunter.net.ua/wp-content/uploads/2020/03/%D0%A1%D0%BF%D0%BB%D0%B8%D1%82-%D1%81%D0%B8%D1%81%D1%82%D0%B5%D0%BC%D0%B0-Winner-CH.jpg","https://cooper-hunter.net.ua/wp-content/uploads/2020/03/%D0%A1%D0%BF%D0%BB%D0%B8%D1%82-%D1%81%D0%B8%D1%81%D1%82%D0%B5%D0%BC%D0%B0-Winner-CH.jpg","https://mzimg.com/big/m1/g8gjvhtggm1.jpg","<p><span style=\"color: rgb(85, 85, 85); font-family: Roboto; font-size: 16px;\">Работа на обогрев при -15°C; Класс А++; Функция «I FEEL»; Технология инверторов от DAIKIN ;«CH SMART-ION Filter»</span><br></p>","- ","WINNER","до 75","Китай",null,"инвертор",null,null,null,null,null,null,null,null,null,"Белый",null,null,null,null,null,null,null,null,null,null,null,null,null,null,null,null,null,null,null,null,null,null,null,null,{"$f":"AY84/$BB$1","v":{"$error":"#DIV/0!"}},28740,806]
["CORONADO",null,null,null,null,null,null,null,null,"- "]
["CH-S07FTXW","Cooper&Hunter","Кондиционер Cooper&Hunter CH-S07FTXW","Кондиционеры",{"$f":"AY86","v":13340},"https://cooper-hunter.net.ua/wp-content/uploads/2020/07/%D0%A1%D0%BF%D0%BB%D0%B8%D1%82-%D1%81%D0%B8%D1%81%D1%82%D0%B5%D0%BC%D0%B0-Coronado-CH-S07FTXW.jpg","https://mzimg.com/big/f1/g8gji9nucf1.jpg","https://cooperhunter-market.com.ua/image/cache/catalog/instal/coronado-6-1200x800.jpg","<p><span style=\"color: rgb(85, 85, 85); font-family: Roboto; font-size: 16px;\">Работа на обогрев при -15°C; Класс А; Функция «I FEEL»; «CH SMART-ION Filter»</span><br></p>","- ","CORONADO","до 20","Китай",null,"инвертор",null,null,null,null,null,null,null,null,null,"Белый",null,null,null,null,null,null,null,null,null,null,null,null,null,null,null,null,null,null,null,null,null,null,null,null,{"$f":"AY86/$BB$1","v":{"$error":"#DIV/0!"}},13340,379]
["CH-S09FTXW","Cooper&Hunter","Кондиционер Cooper&Hunter CH-S09FTXW","Кондиционеры",{"$f":"AY87","v":14590},"https://cooper-hunter.net.ua/wp-content/uploads/2020/07/%D0%A1%D0%BF%D0%BB%D0%B8%D1%82-%D1%81%D0%B8%D1%81%D1%82%D0%B5%D0%BC%D0%B0-Coronado-CH-S07FTXW.jpg","https://mzimg.com/big/f1/g8gji9nucf1.jpg","https://cooperhunter-market.com.ua/image/cache/catalog/instal/coronado-6-1200x800.jpg","<p><span style=\"color: rgb(85, 85, 85); font-family: Roboto; font-size: 16px;\">Работа на обогрев при -15°C; Класс А; Функция «I FEEL»; «CH SMART-ION Filter»</span><br></p>","- ","CORONADO","до 25","Китай",null,"инвертор",null,null,null,null,null,null,null,null,null,"Белый",null,null,null,null,null,null,null,null,null,null,null,null,null,null,null,null,null,null,null,null,null,null,null,null,{"$f":"AY87/$BB$1","v":{"$error":"#DIV/0!"}},14590,414]
["CH-S12FTXW","Cooper&Hunter","Кондиционер Cooper&Hunter CH-S12FTXW","Кондиционеры",{"$f":"AY88","v":15890},"https://cooper-hunter.net.ua/wp-content/uploads/2020/07/%D0%A1%D0%BF%D0%BB%D0%B8%D1%82-%D1%81%D0%B8%D1%81%D1%82%D0%B5%D0%BC%D0%B0-Coronado-CH-S07FTXW.jpg","https://mzimg.com/big/f1/g8gji9nucf1.jpg","https://cooperhunter-market.com.ua/image/cache/catalog/instal/coronado-6-1200x800.jpg","<p><span style=\"color: rgb(85, 85, 85); font-family: Roboto; font-size: 16px;\">Работа на обогрев при -15°C; Класс А; Функция «I FEEL»; «CH SMART-ION Filter»</span><br></p>","- ","CORONADO","до 35","Китай",null,"инвертор",null,null,null,null,null,null,null,null,null,"Белый",null,null,null,null,null,null,null,null,null,null,null,null,null,null,null,null,null,null,null,null,null,null,null,null,{"$f":"AY88/$BB$1","v":{"$error":"#DIV/0!"}},15890,455]
["CH-S18FTXW","Cooper&Hunter","Кондиционер Cooper&Hunter CH-S18FTXW","Кондиционеры",{"$f":"AY89","v":24850},"https://cooper-hunter.net.ua/wp-content/uploads/2020/07/%D0%A1%D0%BF%D0%BB%D0%B8%D1%82-%D1%81%D0%B8%D1%81%D1%82%D0%B5%D0%BC%D0%B0-Coronado-CH-S07FTXW.jpg","https://mzimg.com/big/f1/g8gji9nucf1.jpg","https://cooperhunter-market.com.ua/image/cache/catalog/instal/coronado-6-1200x800.jpg","<p><span style=\"color: rgb(85, 85, 85); font-family: Roboto; font-size: 16px;\">Работа на обогрев при -15°C; Класс А; Функция «I FEEL»; «CH SMART-ION Filter»</span><br></p>","- ","CORONADO","до 50","Китай",null,"инвертор",null,null,null,null,null,null,null,null,null,"Белый",null,null,null,null,null,null,null,null,null,null,null,null,null,null,null,null,null,null,null,null,null,null,null,null,{"$f":"AY89/$BB$1","v":{"$error":"#DIV/0!"}},24850,701]
["CH-S24FTXW","Cooper&Hunter","Кондиционер Cooper&Hunter CH-S24FTXW","Кондиционеры",{"$f":"AY90","v":28740},"https://cooper-hunter.net.ua/wp-content/uploads/2020/07/%D0%A1%D0%BF%D0%BB%D0%B8%D1%82-%D1%81%D0%B8%D1%81%D1%82%D0%B5%D0%BC%D0%B0-Coronado-CH-S07FTXW.jpg","https://mzimg.com/big/f1/g8gji9nucf1.jpg","https://cooperhunter-market.com.ua/image/cache/catalog/instal/coronado-6-1200x800.jpg","<p><span style=\"color: rgb(85, 85, 85); font-family: Roboto; font-size: 16px;\">Работа на обогрев при -15°C; Класс А; Функция «I FEEL»; «CH SMART-ION Filter»</span><br></p>","- ","CORONADO","до 75","Китай",null,"инвертор",null,null,null,null,null,null,null,null,null,"Белый",null,null,null,null,null,null,null,null,null,null,null,null,null,null,null,null,null,null,null,null,null,null,null,null,{"$f":"AY90/$BB$1","v":{"$error":"#DIV/0!"}},28740,806]

{"sheet":"Разное","index":1,"n_rows":131,"n_cols":134,"rows_kept":131,"cut":false,"hidden":false,"merged":[]}
["1-sku","2-Name","3-Category","4-Уровень шума наружного блока, Дб>","5-Уровень шума внутреннего блока, Дб - min/max","10-Потребляемая мощность, кВт","7-Размеры внутреннего блока, мм","6-Размеры наружного блока, мм","8-Производительность охлаждения, кВт","9-Производительность обогрева, кВт","11-Производство","12-Официальная гарантия","13-Максимальная длина магистрали, м","<14-Wi-Fi","15-Site","16-Price","17-Stocs","18-Ионизация","19-Осушение воздуха"]
["GWH09QB-K6DND2E  (Золото)","GREE GWH09QB-K6DND2E Wi-Fi (Золото)","Настенные кондиционеры",50,"41/37/35/32/29/26/24","Холод: 0,82 / Тепло: 0,755","790x275x200","782x540x320",2.7,2.8,"Гонконг","3 года",15,"Wi-Fi (Золото)","https://gree-ukraine.com/prodazha/konditsionery-bytovye/nastennye/gree/lomo-inverter/gree-gwh09qb-k6dnd2e-golden/",24696,10,"да","да"]
["GWH28ACE-K3NNA1A","Кондиционер GREE GWH28ACE-K3NNA1A","Настенные кондиционеры",59,"51/48/42/39","Холод: 2,846 / Тепло: 2,647","1122x329x247","913х680х378",8,8.5,"Гонконг","3 года",30,null,"https://gree-ukraine.com/prodazha/konditsionery-bytovye/nastennye/gree/fairy/gree-gwh28ace-k3nna1a/",32620,10,"да","да"]
["GWH24AAD-K3NNA3A","GREE GWH24AAD-K3NNA3A","Настенные кондиционеры",56,"49/45/41/37","Холод: 1,915 / Тепло: 1,856","970x300x225","913х680х378",6.2,6.7,"Гонконг","3 года",25,null,"https://gree-ukraine.com/prodazha/konditsionery-bytovye/nastennye/gree/lyra/gree-gwh24aad-k3nna3a/",23828,10,"да","да"]
["GWH24QD-K6DND2D  (Белый)","GREE GWH24QD-K6DND2D Wi-Fi (Белый)","Настенные кондиционеры",57,"45/43/41/38/35/34/31","Холод: 1,90 / Тепло: 1,89","1078x325x246","965x700x396",7,7.4,"Гонконг","3 года",25,"Wi-Fi (Белый)","https://gree-ukraine.com/prodazha/konditsionery-bytovye/nastennye/gree/lomo-inverter/gree-gwh24qd-k6dnd2d-white/",37520,null,"да","да"]
["GWH12QD-S6DBD2A","Кондиционер GREE GWH12QD-S6DBD2A Wi-Fi","Настенные кондиционеры",54,"46/43/41/38/36/34/21","Холод: 0,84 / Тепло: 0,95","996x301x225","899x596x378",3.5,4.2,"Гонконг","3 года",40,"Wi-Fi","https://gree-ukraine.com/prodazha/konditsionery-bytovye/nastennye/gree/stage-inverter/gree-gwh12qd-s6dbd2a/",31304,10,"да","да"]
["GWH24QF-K3DNB6G","Кондиционер GREE GWH24QF-K3DNB6G Wi-Fi","Настенные кондиционеры",60,"48/45/42/39","Холод: 1,875 / Тепло: 1,945","1078x325x246","963x700x396","6,7 (2,0-8,2)","7,25 (2,0-8,5)","Гонконг","3 года",25,"Wi-Fi","https://gree-ukraine.com/prodazha/konditsionery-bytovye/nastennye/gree/smart-dc-inverter/gree-gwh24qf-k3dnb6g/",34692,10,"да","да"]
["GWH18QE-S6DBD2B","Кондиционер GREE GWH18QE-S6DBD2B Wi-Fi","Настенные кондиционеры",56,"48/45/43/40/37/35/33","Холод: 1,32 / Тепло: 1,32","1101x327x249","1000x790x427",5.3,5.6,"Гонконг","3 года",40,"Wi-Fi","https://gree-ukraine.com/prodazha/konditsionery-bytovye/nastennye/gree/stage-inverter/gree-gwh18qe-s6dbd2b/",35280,10,"да","да"]
["GWH09QD-S6DBD2A","Кондиционер GREE GWH09QD-S6DBD2A Wi-Fi","Настенные кондиционеры",53,"43/41/38/36/33/31/18","Холод: 0,55 / Тепло: 0,745","996x301x225","899x596x378",2.7,3.5,"Гонконг","3 года",15,"Wi-Fi","https://gree-ukraine.com/prodazha/konditsionery-bytovye/nastennye/gree/stage-inverter/gree-gwh09qd-s6dbd2a/",29988,10,"да","да"]
["GWH24QE-S6DBD2A","Кондиционер GREE GWH24QE-S6DBD2A Wi-Fi","Настенные кондиционеры",56,"50/46/43/41/39/37/35/27","Холод: 1,84 / Тепло: 1,75","1101x327x249","1000x790x427",7,7,"Гонконг","3 года",50,"Wi-Fi","https://gree-ukraine.com/prodazha/konditsionery-bytovye/nastennye/gree/stage-inverter/gree-gwh24qe-s6dbd2a/",41020,10,"да","да"]
["GWH24QD-K6DND2D  (Золото)","GREE GWH24QD-K6DND2D Wi-Fi (Золото)","Настенные кондиционеры",57,"45/43/41/38/35/34/31","Холод: 1,90 / Тепло: 1,89","1078x325x246","965x700x396",7,7.4,"Гонконг","3 года",25,"Wi-Fi (Золото)","https://gree-ukraine.com/prodazha/konditsionery-bytovye/nastennye/gree/lomo-inverter/gree-gwh24qd-k6dnd2d-golden/",35560,10,"да","да"]
["GWH12QC-K6DND2D  (Серебро)","GREE GWH12QC-K6DND2D Wi-Fi (Серебро)","Настенные кондиционеры",52,"42/38/35/32/30/28/26","Холод: 1,085 / Тепло: 0,99","845x289x209","848x596x320",3.5,3.7,"Гонконг","3 года",20,"Wi-Fi (Серебро)","https://gree-ukraine.com/prodazha/konditsionery-bytovye/nastennye/gree/lomo-inverter/gree-gwh12qc-k6dnd2d-serebro/",26460,10,"да","да"]
["GWH18QD-K6DND2D  (Белый)","GREE GWH18QD-K6DND2D Wi-Fi (Белый)","Настенные кондиционеры",57,"45/43/41/38/35/34/31","Холод: 1,528 / Тепло: 1,41","970x300x224","965x700x396",5.2,5.3,"Гонконг","3 года",25,"Wi-Fi (Белый)","https://gree-ukraine.com/prodazha/konditsionery-bytovye/nastennye/gree/lomo-inverter/gree-gwh18qd-k6dnd2d-white/",33600,null,"да","да"]
["GWH09QB-K6DND2E  (Серебро)","GREE GWH09QB-K6DND2E Wi-Fi (Серебро)","Настенные кондиционеры",50,"41/37/35/32/29/26/24","Холод: 0,82 / Тепло: 0,755","790x275x200","782x540x320",2.7,2.8,"Гонконг","3 года",15,"Wi-Fi (Серебро)","https://gree-ukraine.com/prodazha/konditsionery-bytovye/nastennye/gree/lomo-inverter/gree-gwh09qb-k6dnd2e-serebro/",24696,10,"да","да"]
["GWH24QD-K6DND2D  (Серебро)","GREE GWH24QD-K6DND2D Wi-Fi (Серебро)","Настенные кондиционеры",57,"45/43/41/38/35/34/31","Холод: 1,90 / Тепло: 1,89","1078x325x246","965x700x396",7,7.4,"Гонконг","3 года",25,"Wi-Fi (Серебро)","https://gree-ukraine.com/prodazha/konditsionery-bytovye/nastennye/gree/lomo-inverter/gree-gwh24qd-k6dnd2d-serebro/",35560,10,"да","да"]
["GWH18QD-K6DND2D  (Серебро)","GREE GWH18QD-K6DND2D Wi-Fi (Серебро)","Настенные кондиционеры",57,"45/43/41/38/35/34/31","Холод: 1,528 / Тепло: 1,41","970x300x224","965x700x396",5.2,5.3,"Гонконг","3 года",25,"Wi-Fi (Серебро)","https://gree-ukraine.com/prodazha/konditsionery-bytovye/nastennye/gree/lomo-inverter/gree-gwh18qd-k6dnd2d-serebro/",33600,10,"да","да"]
["GWH09QB-K6DND2E  (Белый)","GREE GWH09QB-K6DND2E Wi-Fi (Белый)","Настенные кондиционеры",50,"41/37/35/32/29/26/24","Холод: 0,82 / Тепло: 0,755","790x275x200","782x540x320",2.7,2.8,"Гонконг","3 года",15,"Wi-Fi (Белый)","https://gree-ukraine.com/prodazha/konditsionery-bytovye/nastennye/gree/lomo-inverter/gree-gwh09qb-k6dnd2e-white/",24696,10,"да","да"]
["GWH12QC-K6DND2D  (Белый)","GREE GWH12QC-K6DND2D Wi-Fi (Белый)","Настенные кондиционеры",52,"42/38/35/32/30/28/26","Холод: 1,085 / Тепло: 0,99","845x289x209","848x596x320",3.5,3.7,"Гонконг","3 года",20,"Wi-Fi (Белый)","https://gree-ukraine.com/prodazha/konditsionery-bytovye/nastennye/gree/lomo-inverter/gree-gwh12qc-k6dnd2d-white/",26460,10,"да","да"]
["GWH12AAB-K3DNA5A","Кондиционер GREE GWH12AAB-K3DNA5A Wi-Fi","Настенные кондиционеры",62,"40/36/33/29","Холод: 0,997 / Тепло: 0,942","773x250x185","848x596x320",3.2,3.5,"Гонконг","3 года",15,"Wi-Fi","https://gree-ukraine.com/prodazha/konditsionery-bytovye/nastennye/gree/bora-inverter/gree-gwh12aab-k3dna5a-wi-fi/",18928,null,"да","да"]
["GWH09AAB-K3DNA5A","Кондиционер GREE GWH09AAB-K3DNA5A Wi-Fi","Настенные кондиционеры",50,"40/37/35/28","Холод: 0,79 / Тепло: 0,65","773x250x185","776x540x320",2.5,2.5,"Гонконг","3 года",15,"Wi-Fi","https://gree-ukraine.com/prodazha/konditsionery-bytovye/nastennye/gree/bora-inverter/gree-gwh09aab-k3dna5a-wi-fi/",16940,null,"да","да"]
["GWH18AAD-K3DNA5E","Кондиционер GREE GWH18AAD-K3DNA5E Wi-Fi","Настенные кондиционеры",54,"45/41/37/33","Холод: 1,43 / Тепло: 1,38","970x300x225","842x596x320",4.5999999999999996,5,"Гонконг","3 года",20,"Wi-Fi","https://gree-ukraine.com/prodazha/konditsionery-bytovye/nastennye/gree/bora-inverter/gree-gwh18aad-k3dna5e-wi-fi/",28392,10,"да","да"]
["GWH24AAD-K3DNA5A","Кондиционер GREE GWH24AAD-K3DNA5A Wi-Fi","Настенные кондиционеры",57,"47/43/39/34","Холод: 2 / Тепло: 1,9","955x700x396","842x596x320",6.2,6.2,"Гонконг","3 года",20,"Wi-Fi","https://gree-ukraine.com/prodazha/konditsionery-bytovye/nastennye/gree/bora-inverter/gree-gwh24aad-k3dna5a-wi-fi/",31444,10,"да","да"]
["CH-S12FTX5","Cooper&Hunter","Кондиционер Cooper&Hunter CH-S12FTX5","Кондиционеры",{"$f":"AY23","v":15890},"https://cooper-hunter.net.ua/wp-content/uploads/2020/03/%D0%A1%D0%BF%D0%BB%D0%B8%D1%82-%D1%81%D0%B8%D1%81%D1%82%D0%B5%D0%BC%D0%B0-Winner-CH.jpg","https://cooper-hunter.net.ua/wp-content/uploads/2020/03/%D0%A1%D0%BF%D0%BB%D0%B8%D1%82-%D1%81%D0%B8%D1%81%D1%82%D0%B5%D0%BC%D0%B0-Winner-CH.jpg","https://mzimg.com/big/m1/g8gjvhtggm1.jpg","<p><span style=\"color: rgb(85, 85, 85); font-family: Roboto; font-size: 16px;\">Работа на обогрев при -15°C; Класс А++; Функция «I FEEL»; Технология инверторов от DAIKIN ;«CH SMART-ION Filter»</span><br></p>","- ","WINNER","до 35","Китай",null,"инвертор",null,null,null,null,null,null,null,null,null,"Белый",null,null,null,null,null,null,null,null,null,null,null,null,null,null,null,null,null,null,null,null,null,null,null,null,{"$f":"AY23/$BB$1","v":{"$error":"#DIV/0!"}},15890,455]
["HSC-GA34VA/HMC-GA34VA ","HOAPP","Кондиционер HOAPP (завод GREE) HSC-GA34VA/HMC-GA34VA ","Кондиционеры",{"$f":"AY24","v":0},"https://ventbazar.ua/images/products/111127/hoapp_line_split.jpg","https://ventbazar.ua/images/products/111127/hoapp_line_split.jpg","https://images.ua.prom.st/1047443605_w600_h600_1047443605.jpg",null,"- "," Hoapp LINE","до 35","Китай",null,"обычный","12  тыс. БTE/ч","A+","R410A","-7","GREE (Lavanda)",null,null,null,"Нет","Белый",null,null,null,null,null,null,null,null,null,null,null,null,null,null,null,null,null,null,null,null,null,null,null,null,321,{"$f":"AX24*$BB$1","v":0},263,{"$f":"AZ24*$BB$1","v":0}]
["HSC-GA49VA/HMC-GA49VA ","HOAPP","Кондиционер HOAPP (завод GREE) HSC-GA49VA/HMC-GA49VA ","Кондиционеры",{"$f":"AY25","v":0},"https://ventbazar.ua/images/products/111127/hoapp_line_split.jpg","https://ventbazar.ua/images/products/111127/hoapp_line_split.jpg","https://images.ua.prom.st/1047443605_w600_h600_1047443605.jpg",null,"- "," Hoapp LINE","до 50","Китай",null,"обычный","18  тыс. БTE/ч","A+","R410A","-7","GREE (Lavanda)",null,null,null,"Нет","Белый",null,null,null,null,null,null,null,null,null,null,null,null,null,null,null,null,null,null,null,null,null,null,null,null,508,{"$f":"AX25*$BB$1","v":0},417,{"$f":"AZ25*$BB$1","v":0}]
["HSC-GA65VA/ HMC-GA65VA ","HOAPP","Кондиционер HOAPP (завод GREE) HSC-GA65VA/ HMC-GA65VA ","Кондиционеры",{"$f":"AY26","v":0},"https://ventbazar.ua/images/products/111127/hoapp_line_split.jpg","https://ventbazar.ua/images/products/111127/hoapp_line_split.jpg","https://images.ua.prom.st/1047443605_w600_h600_1047443605.jpg",null,"- "," Hoapp LINE","до 75","Китай",null,"обычный","24  тыс. БTE/ч","A+","R410A","-7","GREE (Lavanda)",null,null,null,"Нет","Белый",null,null,null,null,null,null,null,null,null,null,null,null,null,null,null,null,null,null,null,null,null,null,null,null,653,{"$f":"AX26*$BB$1","v":0},535,{"$f":"AZ26*$BB$1","v":0}]
["LUNA inverter ",null,null,null,null,null,null,null,null,"- "]
["HSZ-LA22VA/ HMZ-LA22VA","HOAPP","Кондиционер HOAPP (завод GREE) HSZ-LA22VA/ HMZ-LA22VA","Кондиционеры",{"$f":"AY28","v":0},"https://hotline.ua/img/tx/290/2900769265.jpg","https://eco-servis.com.ua/image/cache/catalog/products/Hoapp/luna/hoapp-luna-vnutrenniy-blok-1000x1000.jpg",null,null,"- "," Hoapp LUNA","до 20","Китай",null,"инвертор","7  тыс. БTE/ч","A++","R410A","-15","GREE (Lavanda)",null,null,null,"Нет","Белый",null,null,null,null,null,null,null,null,null,null,null,null,null,null,null,null,null,null,null,null,null,null,null,null,340,{"$f":"AX28*$BB$1","v":0},279,{"$f":"AZ28*$BB$1","v":0}]
["HSZ-LA28VA/ HMZ-LA28VA","HOAPP","Кондиционер HOAPP (завод GREE) HSZ-LA28VA/ HMZ-LA28VA","Кондиционеры",{"$f":"AY29","v":0},"https://hotline.ua/img/tx/290/2900769265.jpg","https://eco-servis.com.ua/image/cache/catalog/products/Hoapp/luna/hoapp-luna-vnutrenniy-blok-1000x1000.jpg",null,null,"- "," Hoapp LUNA","до 25","Китай",null,"инвертор","9  тыс. БTE/ч","A++","R410A","-15","GREE (Lavanda)",null,null,null,"Нет","Белый",null,null,null,null,null,null,null,null,null,null,null,null,null,null,null,null,null,null,null,null,null,null,null,null,400,{"$f":"AX29*$BB$1","v":0},328,{"$f":"AZ29*$BB$1","v":0}]
["HSZ-LA38VA/HMZ-LA38VA ","HOAPP","Кондиционер HOAPP (завод GREE) HSZ-LA38VA/HMZ-LA38VA ","Кондиционеры",{"$f":"AY30","v":0},"https://hotline.ua/img/tx/290/2900769265.jpg","https://eco-servis.com.ua/image/cache/catalog/products/Hoapp/luna/hoapp-luna-vnutrenniy-blok-1000x1000.jpg",null,null,"- "," Hoapp LUNA","до 35","Китай",null,"инвертор","12  тыс. БTE/ч","A++","R410A","-15","GREE (Lavanda)",null,null,null,"Нет","Белый",null,null,null,null,null,null,null,null,null,null,null,null,null,null,null,null,null,null,null,null,null,null,null,null,460,{"$f":"AX30*$BB$1","v":0},377,{"$f":"AZ30*$BB$1","v":0}]
["AUX"]
["ASW-H07B4/FAR1","AUX","Кондиционер AUX ASW-H07B4/FAR1","Кондиционеры",{"$f":"AY32","v":0},"https://hotline.ua/img/tx/273/2736130045.jpg","https://www.bestair.com.ua/wp-content/uploads/2020/06/es1sb138x81.png","https://content2.rozetka.com.ua/goods/images/big/66603361.jpg",null,"- ","FREEDOM","до 20","Китай","-",null,null,null,null,null,null,null,null,null,null,null,null,null,null,null,null,null,null,null,null,null,null,null,null,null,null,null,null,null,null,null,null,null,null,null,250,{"$f":"AX32*$BB$1","v":0},185,{"$f":"AZ32*$BB$1","v":0},null,{"$f":"AY32-BA32-BB32+AO32","v":0}]
["ASW-H09A4/FAR1","AUX","Кондиционер AUX ASW-H09A4/FAR1","Кондиционеры",{"$f":"AY33","v":0},"https://hotline.ua/img/tx/273/2736130045.jpg","https://www.bestair.com.ua/wp-content/uploads/2020/06/es1sb138x81.png","https://content2.rozetka.com.ua/goods/images/big/66603361.jpg",null,"- ","FREEDOM","до 25","Китай","-",null,null,null,null,null,null,null,null,null,null,null,null,null,null,null,null,null,null,null,null,null,null,null,null,null,null,null,null,null,null,null,null,null,null,null,275,0,205,0,null,0]
[null,null,null,null,null,null,null,null,null,null,null,null,null,null,null,null,null,null,null,null,null,null,null,null,null,null,null,null,null,null,null,null,null,null,null,null,null,null,null,null,null,null,null,null,null,null,null,null,null,null,null,null,null,null,null,null,null,null,null,null,null,null,null,null,null,null,null,null,null,null,null,null,null,null,null,null,null,null,null,null,null,null,null,null,null,null,null,null,null,null,null,null,null,null,null,null,null,null,null,null,null,null,null,null,null,null,null,null,null,null,null,null,null,null,null,null,null,null,null,null,null,null,null,null,null,null,null,null,null,null,"GWH24ND-K1NNA8A","940x300x206","955x700x424"]
[null,null,null,null,null,null,null,null,null,null,null,null,null,null,null,null,null,null,null,null,null,null,null,null,null,null,null,null,null,null,null,null,null,null,null,null,null,null,null,null,null,null,null,null,null,null,null,null,null,null,null,null,null,null,null,null,null,null,null,null,null,null,null,null,null,null,null,null,null,null,null,null,null,null,null,null,null,null,null,null,null,null,null,null,null,null,null,null,null,null,null,null,null,null,null,null,null,null,null,null,null,null,null,null,null,null,null,null,null,null,null,null,null,null,null,null,null,null,null,null,null,null,null,null,null,null,null,null,null,null,"GWH18KG-K3DNA5A","865x305x215","955x700x396"]
[null,null,null,null,null,null,null,null,null,null,null,null,null,null,null,null,null,null,null,null,null,null,null,null,null,null,null,null,null,null,null,null,null,null,null,null,null,null,null,null,null,null,null,null,null,null,null,null,null,null,null,null,null,null,null,null,null,null,null,null,null,null,null,null,null,null,null,null,null,null,null,null,null,null,null,null,null,null,null,null,null,null,null,null,null,null,null,null,null,null,null,null,null,null,null,null,null,null,null,null,null,null,null,null,null,null,null,null,null,null,null,null,null,null,null,null,null,null,null,null,null,null,null,null,null,null,null,null,null,null,"GWHN09JANK1A1A Gold","815x168x267","776x540x320","1,35/1,25"]
[null,null,null,null,null,null,null,null,null,null,null,null,null,null,null,null,null,null,null,null,null,null,null,null,null,null,null,null,null,null,null,null,null,null,null,null,null,null,null,null,null,null,null,null,null,null,null,null,null,null,null,null,null,null,null,null,null,null,null,null,null,null,null,null,null,null,null,null,null,null,null,null,null,null,null,null,null,null,null,null,null,null,null,null,null,null,null,null,null,null,null,null,null,null,null,null,null,null,null,null,null,null,null,null,null,null,null,null,null,null,null,null,null,null,null,null,null,null,null,null,null,null,null,null,null,null,null,null,null,null,"GWH24KG-K3DNA5A","1008x319x221","955x700x396"]
[null,null,null,null,null,null,null,null,null,null,null,null,null,null,null,null,null,null,null,null,null,null,null,null,null,null,null,null,null,null,null,null,null,null,null,null,null,null,null,null,null,null,null,null,null,null,null,null,null,null,null,null,null,null,null,null,null,null,null,null,null,null,null,null,null,null,null,null,null,null,null,null,null,null,null,null,null,null,null,null,null,null,null,null,null,null,null,null,null,null,null,null,null,null,null,null,null,null,null,null,null,null,null,null,null,null,null,null,null,null,null,null,null,null,null,null,null,null,null,null,null,null,null,null,null,null,null,null,null,null,"GWHN12JBNK1A1A Gold","872x178x283","776x540x320","1,7/1,5"]
[null,null,null,null,null,null,null,null,null,null,null,null,null,null,null,null,null,null,null,null,null,null,null,null,null,null,null,null,null,null,null,null,null,null,null,null,null,null,null,null,null,null,null,null,null,null,null,null,null,null,null,null,null,null,null,null,null,null,null,null,null,null,null,null,null,null,null,null,null,null,null,null,null,null,null,null,null,null,null,null,null,null,null,null,null,null,null,null,null,null,null,null,null,null,null,null,null,null,null,null,null,null,null,null,null,null,null,null,null,null,null,null,null,null,null,null,null,null,null,null,null,null,null,null,null,null,null,null,null,null,"GWH18UC-K3DNA4F","998?178?340","955?396?700"]
[null,null,null,null,null,null,null,null,null,null,null,null,null,null,null,null,null,null,null,null,null,null,null,null,null,null,null,null,null,null,null,null,null,null,null,null,null,null,null,null,null,null,null,null,null,null,null,null,null,null,null,null,null,null,null,null,null,null,null,null,null,null,null,null,null,null,null,null,null,null,null,null,null,null,null,null,null,null,null,null,null,null,null,null,null,null,null,null,null,null,null,null,null,null,null,null,null,null,null,null,null,null,null,null,null,null,null,null,null,null,null,null,null,null,null,null,null,null,null,null,null,null,null,null,null,null,null,null,null,null,"GWH09UB-K3DNA4F","896x320x159","724x540x320"]
[null,null,null,null,null,null,null,null,null,null,null,null,null,null,null,null,null,null,null,null,null,null,null,null,null,null,null,null,null,null,null,null,null,null,null,null,null,null,null,null,null,null,null,null,null,null,null,null,null,null,null,null,null,null,null,null,null,null,null,null,null,null,null,null,null,null,null,null,null,null,null,null,null,null,null,null,null,null,null,null,null,null,null,null,null,null,null,null,null,null,null,null,null,null,null,null,null,null,null,null,null,null,null,null,null,null,null,null,null,null,null,null,null,null,null,null,null,null,null,null,null,null,null,null,null,null,null,null,null,null,"GWH12UB-K3DNA4F","896x320x159","848x540x320"]
[null,null,null,null,null,null,null,null,null,null,null,null,null,null,null,null,null,null,null,null,null,null,null,null,null,null,null,null,null,null,null,null,null,null,null,null,null,null,null,null,null,null,null,null,null,null,null,null,null,null,null,null,null,null,null,null,null,null,null,null,null,null,null,null,null,null,null,null,null,null,null,null,null,null,null,null,null,null,null,null,null,null,null,null,null,null,null,null,null,null,null,null,null,null,null,null,null,null,null,null,null,null,null,null,null,null,null,null,null,null,null,null,null,null,null,null,null,null,null,null,null,null,null,null,null,null,null,null,null,null,"GWH09UB-K3DNA3A","896x320x159","724x540x320"]
[null,null,null,null,null,null,null,null,null,null,null,null,null,null,null,null,null,null,null,null,null,null,null,null,null,null,null,null,null,null,null,null,null,null,null,null,null,null,null,null,null,null,null,null,null,null,null,null,null,null,null,null,null,null,null,null,null,null,null,null,null,null,null,null,null,null,null,null,null,null,null,null,null,null,null,null,null,null,null,null,null,null,null,null,null,null,null,null,null,null,null,null,null,null,null,null,null,null,null,null,null,null,null,null,null,null,null,null,null,null,null,null,null,null,null,null,null,null,null,null,null,null,null,null,null,null,null,null,null,null,"GWH12UB-K3DNA3A","896x320x159","848x540x320"]
[null,null,null,null,null,null,null,null,null,null,null,null,null,null,null,null,null,null,null,null,null,null,null,null,null,null,null,null,null,null,null,null,null,null,null,null,null,null,null,null,null,null,null,null,null,null,null,null,null,null,null,null,null,null,null,null,null,null,null,null,null,null,null,null,null,null,null,null,null,null,null,null,null,null,null,null,null,null,null,null,null,null,null,null,null,null,null,null,null,null,null,null,null,null,null,null,null,null,null,null,null,null,null,null,null,null,null,null,null,null,null,null,null,null,null,null,null,null,null,null,null,null,null,null,null,null,null,null,null,null,"GWH07PA-K3NNA5B","730X254X184","730X428X310",0.65900000000000003]
[null,null,null,null,null,null,null,null,null,null,null,null,null,null,null,null,null,null,null,null,null,null,null,null,null,null,null,null,null,null,null,null,null,null,null,null,null,null,null,null,null,null,null,null,null,null,null,null,null,null,null,null,null,null,null,null,null,null,null,null,null,null,null,null,null,null,null,null,null,null,null,null,null,null,null,null,null,null,null,null,null,null,null,null,null,null,null,null,null,null,null,null,null,null,null,null,null,null,null,null,null,null,null,null,null,null,null,null,null,null,null,null,null,null,null,null,null,null,null,null,null,null,null,null,null,null,null,null,null,null,"GWH07AAB-K3DNA5A","773x250x185","720x428x310","Холод: 0,685 / Тепло: 0,637"]
[null,null,null,null,null,null,null,null,null,null,null,null,null,null,null,null,null,null,null,null,null,null,null,null,null,null,null,null,null,null,null,null,null,null,null,null,null,null,null,null,null,null,null,null,null,null,null,null,null,null,null,null,null,null,null,null,null,null,null,null,null,null,null,null,null,null,null,null,null,null,null,null,null,null,null,null,null,null,null,null,null,null,null,null,null,null,null,null,null,null,null,null,null,null,null,null,null,null,null,null,null,null,null,null,null,null,null,null,null,null,null,null,null,null,null,null,null,null,null,null,null,null,null,null,null,null,null,null,null,null,"GWH09PA-K3NNA5B","730X254X184","720x428x310",0.94]
[null,null,null,null,null,null,null,null,null,null,null,null,null,null,null,null,null,null,null,null,null,null,null,null,null,null,null,null,null,null,null,null,null,null,null,null,null,null,null,null,null,null,null,null,null,null,null,null,null,null,null,null,null,null,null,null,null,null,null,null,null,null,null,null,null,null,null,null,null,null,null,null,null,null,null,null,null,null,null,null,null,null,null,null,null,null,null,null,null,null,null,null,null,null,null,null,null,null,null,null,null,null,null,null,null,null,null,null,null,null,null,null,null,null,null,null,null,null,null,null,null,null,null,null,null,null,null,null,null,null,"GWH07PA-K3NNA1A","730x184x254","720x310x428","0,786/0,808"]
[null,null,null,null,null,null,null,null,null,null,null,null,null,null,null,null,null,null,null,null,null,null,null,null,null,null,null,null,null,null,null,null,null,null,null,null,null,null,null,null,null,null,null,null,null,null,null,null,null,null,null,null,null,null,null,null,null,null,null,null,null,null,null,null,null,null,null,null,null,null,null,null,null,null,null,null,null,null,null,null,null,null,null,null,null,null,null,null,null,null,null,null,null,null,null,null,null,null,null,null,null,null,null,null,null,null,null,null,null,null,null,null,null,null,null,null,null,null,null,null,null,null,null,null,null,null,null,null,null,null,"GWH12PB-K3NNA1A","790X265X175","776x540x320",0.97]
[null,null,null,null,null,null,null,null,null,null,null,null,null,null,null,null,null,null,null,null,null,null,null,null,null,null,null,null,null,null,null,null,null,null,null,null,null,null,null,null,null,null,null,null,null,null,null,null,null,null,null,null,null,null,null,null,null,null,null,null,null,null,null,null,null,null,null,null,null,null,null,null,null,null,null,null,null,null,null,null,null,null,null,null,null,null,null,null,null,null,null,null,null,null,null,null,null,null,null,null,null,null,null,null,null,null,null,null,null,null,null,null,null,null,null,null,null,null,null,null,null,null,null,null,null,null,null,null,null,null,"GWH12PC-K3NNA5A","848x274x189","776x540x320",1.1499999999999999]
[null,null,null,null,null,null,null,null,null,null,null,null,null,null,null,null,null,null,null,null,null,null,null,null,null,null,null,null,null,null,null,null,null,null,null,null,null,null,null,null,null,null,null,null,null,null,null,null,null,null,null,null,null,null,null,null,null,null,null,null,null,null,null,null,null,null,null,null,null,null,null,null,null,null,null,null,null,null,null,null,null,null,null,null,null,null,null,null,null,null,null,null,null,null,null,null,null,null,null,null,null,null,null,null,null,null,null,null,null,null,null,null,null,null,null,null,null,null,null,null,null,null,null,null,null,null,null,null,null,null,"GWH24PD-K3NNA1A","945x211x298","913x378x680","2,25/2,25"]
[null,null,null,null,null,null,null,null,null,null,null,null,null,null,null,null,null,null,null,null,null,null,null,null,null,null,null,null,null,null,null,null,null,null,null,null,null,null,null,null,null,null,null,null,null,null,null,null,null,null,null,null,null,null,null,null,null,null,null,null,null,null,null,null,null,null,null,null,null,null,null,null,null,null,null,null,null,null,null,null,null,null,null,null,null,null,null,null,null,null,null,null,null,null,null,null,null,null,null,null,null,null,null,null,null,null,null,null,null,null,null,null,null,null,null,null,null,null,null,null,null,null,null,null,null,null,null,null,null,null,"GWH09PA-K3NNA1A","730x254x184","776х540х320",0.82]
[null,null,null,null,null,null,null,null,null,null,null,null,null,null,null,null,null,null,null,null,null,null,null,null,null,null,null,null,null,null,null,null,null,null,null,null,null,null,null,null,null,null,null,null,null,null,null,null,null,null,null,null,null,null,null,null,null,null,null,null,null,null,null,null,null,null,null,null,null,null,null,null,null,null,null,null,null,null,null,null,null,null,null,null,null,null,null,null,null,null,null,null,null,null,null,null,null,null,null,null,null,null,null,null,null,null,null,null,null,null,null,null,null,null,null,null,null,null,null,null,null,null,null,null,null,null,null,null,null,null,"GWH18PD-K3NNA1A","945x211x298","848x320x540","1,8/1,8"]
[null,null,null,null,null,null,null,null,null,null,null,null,null,null,null,null,null,null,null,null,null,null,null,null,null,null,null,null,null,null,null,null,null,null,null,null,null,null,null,null,null,null,null,null,null,null,null,null,null,null,null,null,null,null,null,null,null,null,null,null,null,null,null,null,null,null,null,null,null,null,null,null,null,null,null,null,null,null,null,null,null,null,null,null,null,null,null,null,null,null,null,null,null,null,null,null,null,null,null,null,null,null,null,null,null,null,null,null,null,null,null,null,null,null,null,null,null,null,null,null,null,null,null,null,null,null,null,null,null,null,"GWH24KG-K3DNA5G","1008x319x221","955x700x396"]
[null,null,null,null,null,null,null,null,null,null,null,null,null,null,null,null,null,null,null,null,null,null,null,null,null,null,null,null,null,null,null,null,null,null,null,null,null,null,null,null,null,null,null,null,null,null,null,null,null,null,null,null,null,null,null,null,null,null,null,null,null,null,null,null,null,null,null,null,null,null,null,null,null,null,null,null,null,null,null,null,null,null,null,null,null,null,null,null,null,null,null,null,null,null,null,null,null,null,null,null,null,null,null,null,null,null,null,null,null,null,null,null,null,null,null,null,null,null,null,null,null,null,null,null,null,null,null,null,null,null,"GWH12KF-K3DNA5G","770x283x201","710x550x318"]
[null,null,null,null,null,null,null,null,null,null,null,null,null,null,null,null,null,null,null,null,null,null,null,null,null,null,null,null,null,null,null,null,null,null,null,null,null,null,null,null,null,null,null,null,null,null,null,null,null,null,null,null,null,null,null,null,null,null,null,null,null,null,null,null,null,null,null,null,null,null,null,null,null,null,null,null,null,null,null,null,null,null,null,null,null,null,null,null,null,null,null,null,null,null,null,null,null,null,null,null,null,null,null,null,null,null,null,null,null,null,null,null,null,null,null,null,null,null,null,null,null,null,null,null,null,null,null,null,null,null,"GWH09KF-K3DNA5G","770x283x201","710x550x318"]
[null,null,null,null,null,null,null,null,null,null,null,null,null,null,null,null,null,null,null,null,null,null,null,null,null,null,null,null,null,null,null,null,null,null,null,null,null,null,null,null,null,null,null,null,null,null,null,null,null,null,null,null,null,null,null,null,null,null,null,null,null,null,null,null,null,null,null,null,null,null,null,null,null,null,null,null,null,null,null,null,null,null,null,null,null,null,null,null,null,null,null,null,null,null,null,null,null,null,null,null,null,null,null,null,null,null,null,null,null,null,null,null,null,null,null,null,null,null,null,null,null,null,null,null,null,null,null,null,null,null,"GWH18KG-K3DNA5G","865x305x215","955x700x396"]
[null,null,null,null,null,null,null,null,null,null,null,null,null,null,null,null,null,null,null,null,null,null,null,null,null,null,null,null,null,null,null,null,null,null,null,null,null,null,null,null,null,null,null,null,null,null,null,null,null,null,null,null,null,null,null,null,null,null,null,null,null,null,null,null,null,null,null,null,null,null,null,null,null,null,null,null,null,null,null,null,null,null,null,null,null,null,null,null,null,null,null,null,null,null,null,null,null,null,null,null,null,null,null,null,null,null,null,null,null,null,null,null,null,null,null,null,null,null,null,null,null,null,null,null,null,null,null,null,null,null,"GWH12QC-K3DNA2B","845x209x289","710x318x550",1.0900000000000001]
[null,null,null,null,null,null,null,null,null,null,null,null,null,null,null,null,null,null,null,null,null,null,null,null,null,null,null,null,null,null,null,null,null,null,null,null,null,null,null,null,null,null,null,null,null,null,null,null,null,null,null,null,null,null,null,null,null,null,null,null,null,null,null,null,null,null,null,null,null,null,null,null,null,null,null,null,null,null,null,null,null,null,null,null,null,null,null,null,null,null,null,null,null,null,null,null,null,null,null,null,null,null,null,null,null,null,null,null,null,null,null,null,null,null,null,null,null,null,null,null,null,null,null,null,null,null,null,null,null,null,"GWH18QD-K3DNA2B","970x224x300","899x378x596",1.64]
[null,null,null,null,null,null,null,null,null,null,null,null,null,null,null,null,null,null,null,null,null,null,null,null,null,null,null,null,null,null,null,null,null,null,null,null,null,null,null,null,null,null,null,null,null,null,null,null,null,null,null,null,null,null,null,null,null,null,null,null,null,null,null,null,null,null,null,null,null,null,null,null,null,null,null,null,null,null,null,null,null,null,null,null,null,null,null,null,null,null,null,null,null,null,null,null,null,null,null,null,null,null,null,null,null,null,null,null,null,null,null,null,null,null,null,null,null,null,null,null,null,null,null,null,null,null,null,null,null,null,"GWH18QD-K3DNA2G","970x224x300","899x378x596",1.64]
[null,null,null,null,null,null,null,null,null,null,null,null,null,null,null,null,null,null,null,null,null,null,null,null,null,null,null,null,null,null,null,null,null,null,null,null,null,null,null,null,null,null,null,null,null,null,null,null,null,null,null,null,null,null,null,null,null,null,null,null,null,null,null,null,null,null,null,null,null,null,null,null,null,null,null,null,null,null,null,null,null,null,null,null,null,null,null,null,null,null,null,null,null,null,null,null,null,null,null,null,null,null,null,null,null,null,null,null,null,null,null,null,null,null,null,null,null,null,null,null,null,null,null,null,null,null,null,null,null,null,"GWH09QB-K3DNA2G","790x200x275","710x318x550",0.82]
[null,null,null,null,null,null,null,null,null,null,null,null,null,null,null,null,null,null,null,null,null,null,null,null,null,null,null,null,null,null,null,null,null,null,null,null,null,null,null,null,null,null,null,null,null,null,null,null,null,null,null,null,null,null,null,null,null,null,null,null,null,null,null,null,null,null,null,null,null,null,null,null,null,null,null,null,null,null,null,null,null,null,null,null,null,null,null,null,null,null,null,null,null,null,null,null,null,null,null,null,null,null,null,null,null,null,null,null,null,null,null,null,null,null,null,null,null,null,null,null,null,null,null,null,null,null,null,null,null,null,"GWH12QC-K3DNA2G","845x209x289","710x318x550",1.0900000000000001]
[null,null,null,null,null,null,null,null,null,null,null,null,null,null,null,null,null,null,null,null,null,null,null,null,null,null,null,null,null,null,null,null,null,null,null,null,null,null,null,null,null,null,null,null,null,null,null,null,null,null,null,null,null,null,null,null,null,null,null,null,null,null,null,null,null,null,null,null,null,null,null,null,null,null,null,null,null,null,null,null,null,null,null,null,null,null,null,null,null,null,null,null,null,null,null,null,null,null,null,null,null,null,null,null,null,null,null,null,null,null,null,null,null,null,null,null,null,null,null,null,null,null,null,null,null,null,null,null,null,null,"GWH24QE-K3DNA2B","1078x246x325","965x396x700",2.0099999999999998]
[null,null,null,null,null,null,null,null,null,null,null,null,null,null,null,null,null,null,null,null,null,null,null,null,null,null,null,null,null,null,null,null,null,null,null,null,null,null,null,null,null,null,null,null,null,null,null,null,null,null,null,null,null,null,null,null,null,null,null,null,null,null,null,null,null,null,null,null,null,null,null,null,null,null,null,null,null,null,null,null,null,null,null,null,null,null,null,null,null,null,null,null,null,null,null,null,null,null,null,null,null,null,null,null,null,null,null,null,null,null,null,null,null,null,null,null,null,null,null,null,null,null,null,null,null,null,null,null,null,null,"GWH09QB-K3DNB6G","790x275x200","776x320x540",0.82]
[null,null,null,null,null,null,null,null,null,null,null,null,null,null,null,null,null,null,null,null,null,null,null,null,null,null,null,null,null,null,null,null,null,null,null,null,null,null,null,null,null,null,null,null,null,null,null,null,null,null,null,null,null,null,null,null,null,null,null,null,null,null,null,null,null,null,null,null,null,null,null,null,null,null,null,null,null,null,null,null,null,null,null,null,null,null,null,null,null,null,null,null,null,null,null,null,null,null,null,null,null,null,null,null,null,null,null,null,null,null,null,null,null,null,null,null,null,null,null,null,null,null,null,null,null,null,null,null,null,null,"GWH12QC-K3DNB6G","845x209x289","710x318x550",1.0900000000000001]
[null,null,null,null,null,null,null,null,null,null,null,null,null,null,null,null,null,null,null,null,null,null,null,null,null,null,null,null,null,null,null,null,null,null,null,null,null,null,null,null,null,null,null,null,null,null,null,null,null,null,null,null,null,null,null,null,null,null,null,null,null,null,null,null,null,null,null,null,null,null,null,null,null,null,null,null,null,null,null,null,null,null,null,null,null,null,null,null,null,null,null,null,null,null,null,null,null,null,null,null,null,null,null,null,null,null,null,null,null,null,null,null,null,null,null,null,null,null,null,null,null,null,null,null,null,null,null,null,null,null,"GWH24QE-K3DNA2G","1008x319x221","955x700x396",2.0099999999999998]
[null,null,null,null,null,null,null,null,null,null,null,null,null,null,null,null,null,null,null,null,null,null,null,null,null,null,null,null,null,null,null,null,null,null,null,null,null,null,null,null,null,null,null,null,null,null,null,null,null,null,null,null,null,null,null,null,null,null,null,null,null,null,null,null,null,null,null,null,null,null,null,null,null,null,null,null,null,null,null,null,null,null,null,null,null,null,null,null,null,null,null,null,null,null,null,null,null,null,null,null,null,null,null,null,null,null,null,null,null,null,null,null,null,null,null,null,null,null,null,null,null,null,null,null,null,null,null,null,null,null,"GWH18QD-K3DNB6G","970x224x300","899x378x596",1.64]
[null,null,null,null,null,null,null,null,null,null,null,null,null,null,null,null,null,null,null,null,null,null,null,null,null,null,null,null,null,null,null,null,null,null,null,null,null,null,null,null,null,null,null,null,null,null,null,null,null,null,null,null,null,null,null,null,null,null,null,null,null,null,null,null,null,null,null,null,null,null,null,null,null,null,null,null,null,null,null,null,null,null,null,null,null,null,null,null,null,null,null,null,null,null,null,null,null,null,null,null,null,null,null,null,null,null,null,null,null,null,null,null,null,null,null,null,null,null,null,null,null,null,null,null,null,null,null,null,null,null,"GWH24QE-K3DNB6G","1078x246x325","965x396x700",2.0099999999999998]
[null,null,null,null,null,null,null,null,null,null,null,null,null,null,null,null,null,null,null,null,null,null,null,null,null,null,null,null,null,null,null,null,null,null,null,null,null,null,null,null,null,null,null,null,null,null,null,null,null,null,null,null,null,null,null,null,null,null,null,null,null,null,null,null,null,null,null,null,null,null,null,null,null,null,null,null,null,null,null,null,null,null,null,null,null,null,null,null,null,null,null,null,null,null,null,null,null,null,null,null,null,null,null,null,null,null,null,null,null,null,null,null,null,null,null,null,null,null,null,null,null,null,null,null,null,null,null,null,null,null,"GWH12AFC-K6DNA1D","894х291х211","782х540х320","Холод: 1,08 / Тепло: 0,99"]
[null,null,null,null,null,null,null,null,null,null,null,null,null,null,null,null,null,null,null,null,null,null,null,null,null,null,null,null,null,null,null,null,null,null,null,null,null,null,null,null,null,null,null,null,null,null,null,null,null,null,null,null,null,null,null,null,null,null,null,null,null,null,null,null,null,null,null,null,null,null,null,null,null,null,null,null,null,null,null,null,null,null,null,null,null,null,null,null,null,null,null,null,null,null,null,null,null,null,null,null,null,null,null,null,null,null,null,null,null,null,null,null,null,null,null,null,null,null,null,null,null,null,null,null,null,null,null,null,null,null,"GWH09AFC-K6DNA1A","894х291х211","782х540х320","Холод: 0,8 / Тепло: 0,78"]
[null,null,null,null,null,null,null,null,null,null,null,null,null,null,null,null,null,null,null,null,null,null,null,null,null,null,null,null,null,null,null,null,null,null,null,null,null,null,null,null,null,null,null,null,null,null,null,null,null,null,null,null,null,null,null,null,null,null,null,null,null,null,null,null,null,null,null,null,null,null,null,null,null,null,null,null,null,null,null,null,null,null,null,null,null,null,null,null,null,null,null,null,null,null,null,null,null,null,null,null,null,null,null,null,null,null,null,null,null,null,null,null,null,null,null,null,null,null,null,null,null,null,null,null,null,null,null,null,null,null,"GWH24AFE-K6DNA1A","1135X328X247","782х540х320","Холод: 1,9 / Тепло: 1,89"]
[null,null,null,null,null,null,null,null,null,null,null,null,null,null,null,null,null,null,null,null,null,null,null,null,null,null,null,null,null,null,null,null,null,null,null,null,null,null,null,null,null,null,null,null,null,null,null,null,null,null,null,null,null,null,null,null,null,null,null,null,null,null,null,null,null,null,null,null,null,null,null,null,null,null,null,null,null,null,null,null,null,null,null,null,null,null,null,null,null,null,null,null,null,null,null,null,null,null,null,null,null,null,null,null,null,null,null,null,null,null,null,null,null,null,null,null,null,null,null,null,null,null,null,null,null,null,null,null,null,null,"GWH18AFD-K6DNA1D","1017х304х221","782х540х320","Холод: 1,53 / Тепло: 1,41"]
[null,null,null,null,null,null,null,null,null,null,null,null,null,null,null,null,null,null,null,null,null,null,null,null,null,null,null,null,null,null,null,null,null,null,null,null,null,null,null,null,null,null,null,null,null,null,null,null,null,null,null,null,null,null,null,null,null,null,null,null,null,null,null,null,null,null,null,null,null,null,null,null,null,null,null,null,null,null,null,null,null,null,null,null,null,null,null,null,null,null,null,null,null,null,null,null,null,null,null,null,null,null,null,null,null,null,null,null,null,null,null,null,null,null,null,null,null,null,null,null,null,null,null,null,null,null,null,null,null,null,"GWH09YD-S6DBA2A","996x301x225","899x596x378","Холод: 0,55 / Тепло: 0,754"]
[null,null,null,null,null,null,null,null,null,null,null,null,null,null,null,null,null,null,null,null,null,null,null,null,null,null,null,null,null,null,null,null,null,null,null,null,null,null,null,null,null,null,null,null,null,null,null,null,null,null,null,null,null,null,null,null,null,null,null,null,null,null,null,null,null,null,null,null,null,null,null,null,null,null,null,null,null,null,null,null,null,null,null,null,null,null,null,null,null,null,null,null,null,null,null,null,null,null,null,null,null,null,null,null,null,null,null,null,null,null,null,null,null,null,null,null,null,null,null,null,null,null,null,null,null,null,null,null,null,null,"GWH12YD-S6DBA2A","996x301x225","899x596x378","Холод: 0,84 / Тепло: 0,95"]
[null,null,null,null,null,null,null,null,null,null,null,null,null,null,null,null,null,null,null,null,null,null,null,null,null,null,null,null,null,null,null,null,null,null,null,null,null,null,null,null,null,null,null,null,null,null,null,null,null,null,null,null,null,null,null,null,null,null,null,null,null,null,null,null,null,null,null,null,null,null,null,null,null,null,null,null,null,null,null,null,null,null,null,null,null,null,null,null,null,null,null,null,null,null,null,null,null,null,null,null,null,null,null,null,null,null,null,null,null,null,null,null,null,null,null,null,null,null,null,null,null,null,null,null,null,null,null,null,null,null,"GWH07AAB-K3DNA5A","773x250x185","720x428x310","Холод: 0,685 / Тепло: 0,637"]
[null,null,null,null,null,null,null,null,null,null,null,null,null,null,null,null,null,null,null,null,null,null,null,null,null,null,null,null,null,null,null,null,null,null,null,null,null,null,null,null,null,null,null,null,null,null,null,null,null,null,null,null,null,null,null,null,null,null,null,null,null,null,null,null,null,null,null,null,null,null,null,null,null,null,null,null,null,null,null,null,null,null,null,null,null,null,null,null,null,null,null,null,null,null,null,null,null,null,null,null,null,null,null,null,null,null,null,null,null,null,null,null,null,null,null,null,null,null,null,null,null,null,null,null,null,null,null,null,null,null,"GWH24YE-S6DBA2A","1101x327x249","1000x790x427","Холод: 1,84 / Тепло: 1,75"]
[null,null,null,null,null,null,null,null,null,null,null,null,null,null,null,null,null,null,null,null,null,null,null,null,null,null,null,null,null,null,null,null,null,null,null,null,null,null,null,null,null,null,null,null,null,null,null,null,null,null,null,null,null,null,null,null,null,null,null,null,null,null,null,null,null,null,null,null,null,null,null,null,null,null,null,null,null,null,null,null,null,null,null,null,null,null,null,null,null,null,null,null,null,null,null,null,null,null,null,null,null,null,null,null,null,null,null,null,null,null,null,null,null,null,null,null,null,null,null,null,null,null,null,null,null,null,null,null,null,null,"GWH09AAB-K6DNA5A","773x250x185","782x540x320","Холод: 0,781 / Тепло: 0,777"]
[null,null,null,null,null,null,null,null,null,null,null,null,null,null,null,null,null,null,null,null,null,null,null,null,null,null,null,null,null,null,null,null,null,null,null,null,null,null,null,null,null,null,null,null,null,null,null,null,null,null,null,null,null,null,null,null,null,null,null,null,null,null,null,null,null,null,null,null,null,null,null,null,null,null,null,null,null,null,null,null,null,null,null,null,null,null,null,null,null,null,null,null,null,null,null,null,null,null,null,null,null,null,null,null,null,null,null,null,null,null,null,null,null,null,null,null,null,null,null,null,null,null,null,null,null,null,null,null,null,null,"GWH18YE-S6DBA2A","1101x327x249","1000x790x427","Холод: 1,32 / Тепло: 1,32"]
[null,null,null,null,null,null,null,null,null,null,null,null,null,null,null,null,null,null,null,null,null,null,null,null,null,null,null,null,null,null,null,null,null,null,null,null,null,null,null,null,null,null,null,null,null,null,null,null,null,null,null,null,null,null,null,null,null,null,null,null,null,null,null,null,null,null,null,null,null,null,null,null,null,null,null,null,null,null,null,null,null,null,null,null,null,null,null,null,null,null,null,null,null,null,null,null,null,null,null,null,null,null,null,null,null,null,null,null,null,null,null,null,null,null,null,null,null,null,null,null,null,null,null,null,null,null,null,null,null,null,"GWH07AAA-K3NNA2A","698x250x185","720x428x310","Холод: 0,685 / Тепло: 0,637"]
[null,null,null,null,null,null,null,null,null,null,null,null,null,null,null,null,null,null,null,null,null,null,null,null,null,null,null,null,null,null,null,null,null,null,null,null,null,null,null,null,null,null,null,null,null,null,null,null,null,null,null,null,null,null,null,null,null,null,null,null,null,null,null,null,null,null,null,null,null,null,null,null,null,null,null,null,null,null,null,null,null,null,null,null,null,null,null,null,null,null,null,null,null,null,null,null,null,null,null,null,null,null,null,null,null,null,null,null,null,null,null,null,null,null,null,null,null,null,null,null,null,null,null,null,null,null,null,null,null,null,"GWH24AAD-K3NNA2A","970x300x225","913х680х378","Холод: 1,915 / Тепло: 1,856"]
[null,null,null,null,null,null,null,null,null,null,null,null,null,null,null,null,null,null,null,null,null,null,null,null,null,null,null,null,null,null,null,null,null,null,null,null,null,null,null,null,null,null,null,null,null,null,null,null,null,null,null,null,null,null,null,null,null,null,null,null,null,null,null,null,null,null,null,null,null,null,null,null,null,null,null,null,null,null,null,null,null,null,null,null,null,null,null,null,null,null,null,null,null,null,null,null,null,null,null,null,null,null,null,null,null,null,null,null,null,null,null,null,null,null,null,null,null,null,null,null,null,null,null,null,null,null,null,null,null,null,"GWH12AAB-K3NNA2A","773x250x185","776х540х320","Холод: 1,012 / Тепло: 0,941"]
[null,null,null,null,null,null,null,null,null,null,null,null,null,null,null,null,null,null,null,null,null,null,null,null,null,null,null,null,null,null,null,null,null,null,null,null,null,null,null,null,null,null,null,null,null,null,null,null,null,null,null,null,null,null,null,null,null,null,null,null,null,null,null,null,null,null,null,null,null,null,null,null,null,null,null,null,null,null,null,null,null,null,null,null,null,null,null,null,null,null,null,null,null,null,null,null,null,null,null,null,null,null,null,null,null,null,null,null,null,null,null,null,null,null,null,null,null,null,null,null,null,null,null,null,null,null,null,null,null,null,"GWH09AAA-K3NNA2A","698x250x185","720x428x310","Холод: 0,794 / Тепло: 0,734"]
[null,null,null,null,null,null,null,null,null,null,null,null,null,null,null,null,null,null,null,null,null,null,null,null,null,null,null,null,null,null,null,null,null,null,null,null,null,null,null,null,null,null,null,null,null,null,null,null,null,null,null,null,null,null,null,null,null,null,null,null,null,null,null,null,null,null,null,null,null,null,null,null,null,null,null,null,null,null,null,null,null,null,null,null,null,null,null,null,null,null,null,null,null,null,null,null,null,null,null,null,null,null,null,null,null,null,null,null,null,null,null,null,null,null,null,null,null,null,null,null,null,null,null,null,null,null,null,null,null,null,"GWH07ACA-K3NNA1A","744x256x185","720x428x310","Холод: 0,7 / Тепло: 0,651"]
[null,null,null,null,null,null,null,null,null,null,null,null,null,null,null,null,null,null,null,null,null,null,null,null,null,null,null,null,null,null,null,null,null,null,null,null,null,null,null,null,null,null,null,null,null,null,null,null,null,null,null,null,null,null,null,null,null,null,null,null,null,null,null,null,null,null,null,null,null,null,null,null,null,null,null,null,null,null,null,null,null,null,null,null,null,null,null,null,null,null,null,null,null,null,null,null,null,null,null,null,null,null,null,null,null,null,null,null,null,null,null,null,null,null,null,null,null,null,null,null,null,null,null,null,null,null,null,null,null,null,"GWH09AAB-K3DNA5A","773x250x185","776x540x320","Холод: 0,79 / Тепло: 0,65"]
[null,null,null,null,null,null,null,null,null,null,null,null,null,null,null,null,null,null,null,null,null,null,null,null,null,null,null,null,null,null,null,null,null,null,null,null,null,null,null,null,null,null,null,null,null,null,null,null,null,null,null,null,null,null,null,null,null,null,null,null,null,null,null,null,null,null,null,null,null,null,null,null,null,null,null,null,null,null,null,null,null,null,null,null,null,null,null,null,null,null,null,null,null,null,null,null,null,null,null,null,null,null,null,null,null,null,null,null,null,null,null,null,null,null,null,null,null,null,null,null,null,null,null,null,null,null,null,null,null,null,"GWH28AAE-K3NNA2A","1080x325x245","965x700x396","Холод: 2,846 / Тепло: 2,647"]
[null,null,null,null,null,null,null,null,null,null,null,null,null,null,null,null,null,null,null,null,null,null,null,null,null,null,null,null,null,null,null,null,null,null,null,null,null,null,null,null,null,null,null,null,null,null,null,null,null,null,null,null,null,null,null,null,null,null,null,null,null,null,null,null,null,null,null,null,null,null,null,null,null,null,null,null,null,null,null,null,null,null,null,null,null,null,null,null,null,null,null,null,null,null,null,null,null,null,null,null,null,null,null,null,null,null,null,null,null,null,null,null,null,null,null,null,null,null,null,null,null,null,null,null,null,null,null,null,null,null,"GWH18ACC-K3NNA1A","888x284x212","848х540х320","Холод: 1,495 / Тепло: 1,468"]
[null,null,null,null,null,null,null,null,null,null,null,null,null,null,null,null,null,null,null,null,null,null,null,null,null,null,null,null,null,null,null,null,null,null,null,null,null,null,null,null,null,null,null,null,null,null,null,null,null,null,null,null,null,null,null,null,null,null,null,null,null,null,null,null,null,null,null,null,null,null,null,null,null,null,null,null,null,null,null,null,null,null,null,null,null,null,null,null,null,null,null,null,null,null,null,null,null,null,null,null,null,null,null,null,null,null,null,null,null,null,null,null,null,null,null,null,null,null,null,null,null,null,null,null,null,null,null,null,null,null,"GWH12AAB-K3DNA5A","773x250x185","848x596x320","Холод: 0,997 / Тепло: 0,942"]
[null,null,null,null,null,null,null,null,null,null,null,null,null,null,null,null,null,null,null,null,null,null,null,null,null,null,null,null,null,null,null,null,null,null,null,null,null,null,null,null,null,null,null,null,null,null,null,null,null,null,null,null,null,null,null,null,null,null,null,null,null,null,null,null,null,null,null,null,null,null,null,null,null,null,null,null,null,null,null,null,null,null,null,null,null,null,null,null,null,null,null,null,null,null,null,null,null,null,null,null,null,null,null,null,null,null,null,null,null,null,null,null,null,null,null,null,null,null,null,null,null,null,null,null,null,null,null,null,null,null,"GWH18AAC-K3NNA2A","849х289х210","848х540х320","Холод: 1,495 / Тепло: 1,5"]
[null,null,null,null,null,null,null,null,null,null,null,null,null,null,null,null,null,null,null,null,null,null,null,null,null,null,null,null,null,null,null,null,null,null,null,null,null,null,null,null,null,null,null,null,null,null,null,null,null,null,null,null,null,null,null,null,null,null,null,null,null,null,null,null,null,null,null,null,null,null,null,null,null,null,null,null,null,null,null,null,null,null,null,null,null,null,null,null,null,null,null,null,null,null,null,null,null,null,null,null,null,null,null,null,null,null,null,null,null,null,null,null,null,null,null,null,null,null,null,null,null,null,null,null,null,null,null,null,null,null,"GWH12AAB-K6DNA5A","773x250x185","842x596x320","Холод: 0,997 / Тепло: 0,941"]
[null,null,null,null,null,null,null,null,null,null,null,null,null,null,null,null,null,null,null,null,null,null,null,null,null,null,null,null,null,null,null,null,null,null,null,null,null,null,null,null,null,null,null,null,null,null,null,null,null,null,null,null,null,null,null,null,null,null,null,null,null,null,null,null,null,null,null,null,null,null,null,null,null,null,null,null,null,null,null,null,null,null,null,null,null,null,null,null,null,null,null,null,null,null,null,null,null,null,null,null,null,null,null,null,null,null,null,null,null,null,null,null,null,null,null,null,null,null,null,null,null,null,null,null,null,null,null,null,null,null,"GWH18AAD-K3DNA5E","970x300x225","842x596x320","Холод: 1,43 / Тепло: 1,38"]
[null,null,null,null,null,null,null,null,null,null,null,null,null,null,null,null,null,null,null,null,null,null,null,null,null,null,null,null,null,null,null,null,null,null,null,null,null,null,null,null,null,null,null,null,null,null,null,null,null,null,null,null,null,null,null,null,null,null,null,null,null,null,null,null,null,null,null,null,null,null,null,null,null,null,null,null,null,null,null,null,null,null,null,null,null,null,null,null,null,null,null,null,null,null,null,null,null,null,null,null,null,null,null,null,null,null,null,null,null,null,null,null,null,null,null,null,null,null,null,null,null,null,null,null,null,null,null,null,null,null,"GWH24AAD-K6DNA5A","970x300x225","848x596x320","Холод: 1,76 / Тепло: 1,86"]
[null,null,null,null,null,null,null,null,null,null,null,null,null,null,null,null,null,null,null,null,null,null,null,null,null,null,null,null,null,null,null,null,null,null,null,null,null,null,null,null,null,null,null,null,null,null,null,null,null,null,null,null,null,null,null,null,null,null,null,null,null,null,null,null,null,null,null,null,null,null,null,null,null,null,null,null,null,null,null,null,null,null,null,null,null,null,null,null,null,null,null,null,null,null,null,null,null,null,null,null,null,null,null,null,null,null,null,null,null,null,null,null,null,null,null,null,null,null,null,null,null,null,null,null,null,null,null,null,null,null,"GWH18AAD-K6DNA5B","970x300x225","848x596x320","Холод: 1,43 / Тепло: 1,4"]
[null,null,null,null,null,null,null,null,null,null,null,null,null,null,null,null,null,null,null,null,null,null,null,null,null,null,null,null,null,null,null,null,null,null,null,null,null,null,null,null,null,null,null,null,null,null,null,null,null,null,null,null,null,null,null,null,null,null,null,null,null,null,null,null,null,null,null,null,null,null,null,null,null,null,null,null,null,null,null,null,null,null,null,null,null,null,null,null,null,null,null,null,null,null,null,null,null,null,null,null,null,null,null,null,null,null,null,null,null,null,null,null,null,null,null,null,null,null,null,null,null,null,null,null,null,null,null,null,null,null,"GWH24ACD-K3NNA1A","1013x307x221","913х680х378","Холод: 1,915 / Тепло: 1,856"]
[null,null,null,null,null,null,null,null,null,null,null,null,null,null,null,null,null,null,null,null,null,null,null,null,null,null,null,null,null,null,null,null,null,null,null,null,null,null,null,null,null,null,null,null,null,null,null,null,null,null,null,null,null,null,null,null,null,null,null,null,null,null,null,null,null,null,null,null,null,null,null,null,null,null,null,null,null,null,null,null,null,null,null,null,null,null,null,null,null,null,null,null,null,null,null,null,null,null,null,null,null,null,null,null,null,null,null,null,null,null,null,null,null,null,null,null,null,null,null,null,null,null,null,null,null,null,null,null,null,null,"GWH24AAD-K3DNA5A","955x700x396","842x596x320","Холод: 2 / Тепло: 1,9"]
[null,null,null,null,null,null,null,null,null,null,null,null,null,null,null,null,null,null,null,null,null,null,null,null,null,null,null,null,null,null,null,null,null,null,null,null,null,null,null,null,null,null,null,null,null,null,null,null,null,null,null,null,null,null,null,null,null,null,null,null,null,null,null,null,null,null,null,null,null,null,null,null,null,null,null,null,null,null,null,null,null,null,null,null,null,null,null,null,null,null,null,null,null,null,null,null,null,null,null,null,null,null,null,null,null,null,null,null,null,null,null,null,null,null,null,null,null,null,null,null,null,null,null,null,null,null,null,null,null,null,"GWH12ACB-K3NNA1A","819x256x185","776х540х320","Холод: 1,012 / Тепло: 0,941"]
[null,null,null,null,null,null,null,null,null,null,null,null,null,null,null,null,null,null,null,null,null,null,null,null,null,null,null,null,null,null,null,null,null,null,null,null,null,null,null,null,null,null,null,null,null,null,null,null,null,null,null,null,null,null,null,null,null,null,null,null,null,null,null,null,null,null,null,null,null,null,null,null,null,null,null,null,null,null,null,null,null,null,null,null,null,null,null,null,null,null,null,null,null,null,null,null,null,null,null,null,null,null,null,null,null,null,null,null,null,null,null,null,null,null,null,null,null,null,null,null,null,null,null,null,null,null,null,null,null,null,"GWH09ACA-K3NNA1A","744x256x185","720x428x310","Холод: 0,794 / Тепло: 0,734"]
[null,null,null,null,null,null,null,null,null,null,null,null,null,null,null,null,null,null,null,null,null,null,null,null,null,null,null,null,null,null,null,null,null,null,null,null,null,null,null,null,null,null,null,null,null,null,null,null,null,null,null,null,null,null,null,null,null,null,null,null,null,null,null,null,null,null,null,null,null,null,null,null,null,null,null,null,null,null,null,null,null,null,null,null,null,null,null,null,null,null,null,null,null,null,null,null,null,null,null,null,null,null,null,null,null,null,null,null,null,null,null,null,null,null,null,null,null,null,null,null,null,null,null,null,null,null,null,null,null,null,"GWH09QB-K6DND2E  (Золото)","790x275x200","782x540x320","Холод: 0,82 / Тепло: 0,755"]
[null,null,null,null,null,null,null,null,null,null,null,null,null,null,null,null,null,null,null,null,null,null,null,null,null,null,null,null,null,null,null,null,null,null,null,null,null,null,null,null,null,null,null,null,null,null,null,null,null,null,null,null,null,null,null,null,null,null,null,null,null,null,null,null,null,null,null,null,null,null,null,null,null,null,null,null,null,null,null,null,null,null,null,null,null,null,null,null,null,null,null,null,null,null,null,null,null,null,null,null,null,null,null,null,null,null,null,null,null,null,null,null,null,null,null,null,null,null,null,null,null,null,null,null,null,null,null,null,null,null,"GWH28ACE-K3NNA1A","1122x329x247","913х680х378","Холод: 2,846 / Тепло: 2,647"]
[null,null,null,null,null,null,null,null,null,null,null,null,null,null,null,null,null,null,null,null,null,null,null,null,null,null,null,null,null,null,null,null,null,null,null,null,null,null,null,null,null,null,null,null,null,null,null,null,null,null,null,null,null,null,null,null,null,null,null,null,null,null,null,null,null,null,null,null,null,null,null,null,null,null,null,null,null,null,null,null,null,null,null,null,null,null,null,null,null,null,null,null,null,null,null,null,null,null,null,null,null,null,null,null,null,null,null,null,null,null,null,null,null,null,null,null,null,null,null,null,null,null,null,null,null,null,null,null,null,null,"GWH24AAD-K3NNA3A","970x300x225","913х680х378","Холод: 1,915 / Тепло: 1,856"]
[null,null,null,null,null,null,null,null,null,null,null,null,null,null,null,null,null,null,null,null,null,null,null,null,null,null,null,null,null,null,null,null,null,null,null,null,null,null,null,null,null,null,null,null,null,null,null,null,null,null,null,null,null,null,null,null,null,null,null,null,null,null,null,null,null,null,null,null,null,null,null,null,null,null,null,null,null,null,null,null,null,null,null,null,null,null,null,null,null,null,null,null,null,null,null,null,null,null,null,null,null,null,null,null,null,null,null,null,null,null,null,null,null,null,null,null,null,null,null,null,null,null,null,null,null,null,null,null,null,null,"GWH24QD-K6DND2D  (Белый)","1078x325x246","965x700x396","Холод: 1,90 / Тепло: 1,89"]
[null,null,null,null,null,null,null,null,null,null,null,null,null,null,null,null,null,null,null,null,null,null,null,null,null,null,null,null,null,null,null,null,null,null,null,null,null,null,null,null,null,null,null,null,null,null,null,null,null,null,null,null,null,null,null,null,null,null,null,null,null,null,null,null,null,null,null,null,null,null,null,null,null,null,null,null,null,null,null,null,null,null,null,null,null,null,null,null,null,null,null,null,null,null,null,null,null,null,null,null,null,null,null,null,null,null,null,null,null,null,null,null,null,null,null,null,null,null,null,null,null,null,null,null,null,null,null,null,null,null,"GWH18QD-K6DND2D  (Золото)","970x300x224","965x700x396","Холод: 1,528 / Тепло: 1,41"]
[null,null,null,null,null,null,null,null,null,null,null,null,null,null,null,null,null,null,null,null,null,null,null,null,null,null,null,null,null,null,null,null,null,null,null,null,null,null,null,null,null,null,null,null,null,null,null,null,null,null,null,null,null,null,null,null,null,null,null,null,null,null,null,null,null,null,null,null,null,null,null,null,null,null,null,null,null,null,null,null,null,null,null,null,null,null,null,null,null,null,null,null,null,null,null,null,null,null,null,null,null,null,null,null,null,null,null,null,null,null,null,null,null,null,null,null,null,null,null,null,null,null,null,null,null,null,null,null,null,null,"GWH12QC-K6DND2D  (Золото)","845x289x209","848x596x320","Холод: 1,085 / Тепло: 0,99"]
[null,null,null,null,null,null,null,null,null,null,null,null,null,null,null,null,null,null,null,null,null,null,null,null,null,null,null,null,null,null,null,null,null,null,null,null,null,null,null,null,null,null,null,null,null,null,null,null,null,null,null,null,null,null,null,null,null,null,null,null,null,null,null,null,null,null,null,null,null,null,null,null,null,null,null,null,null,null,null,null,null,null,null,null,null,null,null,null,null,null,null,null,null,null,null,null,null,null,null,null,null,null,null,null,null,null,null,null,null,null,null,null,null,null,null,null,null,null,null,null,null,null,null,null,null,null,null,null,null,null,"GWH28AAE-K3NNA3A","1080x325x245","965x700x396","Холод: 2,846 / Тепло: 2,647"]
[null,null,null,null,null,null,null,null,null,null,null,null,null,null,null,null,null,null,null,null,null,null,null,null,null,null,null,null,null,null,null,null,null,null,null,null,null,null,null,null,null,null,null,null,null,null,null,null,null,null,null,null,null,null,null,null,null,null,null,null,null,null,null,null,null,null,null,null,null,null,null,null,null,null,null,null,null,null,null,null,null,null,null,null,null,null,null,null,null,null,null,null,null,null,null,null,null,null,null,null,null,null,null,null,null,null,null,null,null,null,null,null,null,null,null,null,null,null,null,null,null,null,null,null,null,null,null,null,null,null,"GWH09AAA-K3NNA3A","698x250x185","720x428x310","Холод: 0,794 / Тепло: 0,734"]
[null,null,null,null,null,null,null,null,null,null,null,null,null,null,null,null,null,null,null,null,null,null,null,null,null,null,null,null,null,null,null,null,null,null,null,null,null,null,null,null,null,null,null,null,null,null,null,null,null,null,null,null,null,null,null,null,null,null,null,null,null,null,null,null,null,null,null,null,null,null,null,null,null,null,null,null,null,null,null,null,null,null,null,null,null,null,null,null,null,null,null,null,null,null,null,null,null,null,null,null,null,null,null,null,null,null,null,null,null,null,null,null,null,null,null,null,null,null,null,null,null,null,null,null,null,null,null,null,null,null,"GWH07AAA-K3NNA3A","698x250x185","720x428x310","Холод: 0,685 / Тепло: 0,637"]
[null,null,null,null,null,null,null,null,null,null,null,null,null,null,null,null,null,null,null,null,null,null,null,null,null,null,null,null,null,null,null,null,null,null,null,null,null,null,null,null,null,null,null,null,null,null,null,null,null,null,null,null,null,null,null,null,null,null,null,null,null,null,null,null,null,null,null,null,null,null,null,null,null,null,null,null,null,null,null,null,null,null,null,null,null,null,null,null,null,null,null,null,null,null,null,null,null,null,null,null,null,null,null,null,null,null,null,null,null,null,null,null,null,null,null,null,null,null,null,null,null,null,null,null,null,null,null,null,null,null,"GWH18AAC-K3NNA3A","849x282x210","848х540х320","Холод: 1,495 / Тепло: 1,5"]
[null,null,null,null,null,null,null,null,null,null,null,null,null,null,null,null,null,null,null,null,null,null,null,null,null,null,null,null,null,null,null,null,null,null,null,null,null,null,null,null,null,null,null,null,null,null,null,null,null,null,null,null,null,null,null,null,null,null,null,null,null,null,null,null,null,null,null,null,null,null,null,null,null,null,null,null,null,null,null,null,null,null,null,null,null,null,null,null,null,null,null,null,null,null,null,null,null,null,null,null,null,null,null,null,null,null,null,null,null,null,null,null,null,null,null,null,null,null,null,null,null,null,null,null,null,null,null,null,null,null,"GWH12AAB-K3NNA3A","773x250x185","776х540х320","Холод: 1,012 / Тепло: 0,941"]
[null,null,null,null,null,null,null,null,null,null,null,null,null,null,null,null,null,null,null,null,null,null,null,null,null,null,null,null,null,null,null,null,null,null,null,null,null,null,null,null,null,null,null,null,null,null,null,null,null,null,null,null,null,null,null,null,null,null,null,null,null,null,null,null,null,null,null,null,null,null,null,null,null,null,null,null,null,null,null,null,null,null,null,null,null,null,null,null,null,null,null,null,null,null,null,null,null,null,null,null,null,null,null,null,null,null,null,null,null,null,null,null,null,null,null,null,null,null,null,null,null,null,null,null,null,null,null,null,null,null,"GWH18AFC-K3NNA1A","889x294x212","889х540х320","Холод: 1,495 / Тепло: 1,5"]
[null,null,null,null,null,null,null,null,null,null,null,null,null,null,null,null,null,null,null,null,null,null,null,null,null,null,null,null,null,null,null,null,null,null,null,null,null,null,null,null,null,null,null,null,null,null,null,null,null,null,null,null,null,null,null,null,null,null,null,null,null,null,null,null,null,null,null,null,null,null,null,null,null,null,null,null,null,null,null,null,null,null,null,null,null,null,null,null,null,null,null,null,null,null,null,null,null,null,null,null,null,null,null,null,null,null,null,null,null,null,null,null,null,null,null,null,null,null,null,null,null,null,null,null,null,null,null,null,null,null,"GWH09AFA-K3NNA1A","744x256x185","720x428x310","Холод: 0,794 / Тепло: 0,734"]
[null,null,null,null,null,null,null,null,null,null,null,null,null,null,null,null,null,null,null,null,null,null,null,null,null,null,null,null,null,null,null,null,null,null,null,null,null,null,null,null,null,null,null,null,null,null,null,null,null,null,null,null,null,null,null,null,null,null,null,null,null,null,null,null,null,null,null,null,null,null,null,null,null,null,null,null,null,null,null,null,null,null,null,null,null,null,null,null,null,null,null,null,null,null,null,null,null,null,null,null,null,null,null,null,null,null,null,null,null,null,null,null,null,null,null,null,null,null,null,null,null,null,null,null,null,null,null,null,null,null,"GWH12AFB-K3NNA1A","819x256x185","776х540х320","Холод: 1,012 / Тепло: 0,941"]
[null,null,null,null,null,null,null,null,null,null,null,null,null,null,null,null,null,null,null,null,null,null,null,null,null,null,null,null,null,null,null,null,null,null,null,null,null,null,null,null,null,null,null,null,null,null,null,null,null,null,null,null,null,null,null,null,null,null,null,null,null,null,null,null,null,null,null,null,null,null,null,null,null,null,null,null,null,null,null,null,null,null,null,null,null,null,null,null,null,null,null,null,null,null,null,null,null,null,null,null,null,null,null,null,null,null,null,null,null,null,null,null,null,null,null,null,null,null,null,null,null,null,null,null,null,null,null,null,null,null,"GWH07AFA-K3NNA1A","744x256x185","720x428x310","Холод: 0,7 / Тепло: 0,651"]
[null,null,null,null,null,null,null,null,null,null,null,null,null,null,null,null,null,null,null,null,null,null,null,null,null,null,null,null,null,null,null,null,null,null,null,null,null,null,null,null,null,null,null,null,null,null,null,null,null,null,null,null,null,null,null,null,null,null,null,null,null,null,null,null,null,null,null,null,null,null,null,null,null,null,null,null,null,null,null,null,null,null,null,null,null,null,null,null,null,null,null,null,null,null,null,null,null,null,null,null,null,null,null,null,null,null,null,null,null,null,null,null,null,null,null,null,null,null,null,null,null,null,null,null,null,null,null,null,null,null,"GWH24AFD-K3NNA1A","1017x304x221","913х680х378","Холод: 1,915 / Тепло: 1,856"]
[null,null,null,null,null,null,null,null,null,null,null,null,null,null,null,null,null,null,null,null,null,null,null,null,null,null,null,null,null,null,null,null,null,null,null,null,null,null,null,null,null,null,null,null,null,null,null,null,null,null,null,null,null,null,null,null,null,null,null,null,null,null,null,null,null,null,null,null,null,null,null,null,null,null,null,null,null,null,null,null,null,null,null,null,null,null,null,null,null,null,null,null,null,null,null,null,null,null,null,null,null,null,null,null,null,null,null,null,null,null,null,null,null,null,null,null,null,null,null,null,null,null,null,null,null,null,null,null,null,null,"GWH07QA-K3DNC2C","713x270x195","720x428x310","Холод: 0,685 / Тепло: 0,637"]
[null,null,null,null,null,null,null,null,null,null,null,null,null,null,null,null,null,null,null,null,null,null,null,null,null,null,null,null,null,null,null,null,null,null,null,null,null,null,null,null,null,null,null,null,null,null,null,null,null,null,null,null,null,null,null,null,null,null,null,null,null,null,null,null,null,null,null,null,null,null,null,null,null,null,null,null,null,null,null,null,null,null,null,null,null,null,null,null,null,null,null,null,null,null,null,null,null,null,null,null,null,null,null,null,null,null,null,null,null,null,null,null,null,null,null,null,null,null,null,null,null,null,null,null,null,null,null,null,null,null,"GWH28AFE-K3NNA1B","1139x328x247","965x700x396","Холод: 2,846 / Тепло: 2,647"]
[null,null,null,null,null,null,null,null,null,null,null,null,null,null,null,null,null,null,null,null,null,null,null,null,null,null,null,null,null,null,null,null,null,null,null,null,null,null,null,null,null,null,null,null,null,null,null,null,null,null,null,null,null,null,null,null,null,null,null,null,null,null,null,null,null,null,null,null,null,null,null,null,null,null,null,null,null,null,null,null,null,null,null,null,null,null,null,null,null,null,null,null,null,null,null,null,null,null,null,null,null,null,null,null,null,null,null,null,null,null,null,null,null,null,null,null,null,null,null,null,null,null,null,null,null,null,null,null,null,null,"GWH07QA-K3DNB2C","713x270x195","720x428x310","Холод: 0,685 / Тепло: 0,637"]
[null,null,null,null,null,null,null,null,null,null,null,null,null,null,null,null,null,null,null,null,null,null,null,null,null,null,null,null,null,null,null,null,null,null,null,null,null,null,null,null,null,null,null,null,null,null,null,null,null,null,null,null,null,null,null,null,null,null,null,null,null,null,null,null,null,null,null,null,null,null,null,null,null,null,null,null,null,null,null,null,null,null,null,null,null,null,null,null,null,null,null,null,null,null,null,null,null,null,null,null,null,null,null,null,null,null,null,null,null,null,null,null,null,null,null,null,null,null,null,null,null,null,null,null,null,null,null,null,null,null,"GWH12QD-S6DBD2A","996x301x225","899x596x378","Холод: 0,84 / Тепло: 0,95"]
[null,null,null,null,null,null,null,null,null,null,null,null,null,null,null,null,null,null,null,null,null,null,null,null,null,null,null,null,null,null,null,null,null,null,null,null,null,null,null,null,null,null,null,null,null,null,null,null,null,null,null,null,null,null,null,null,null,null,null,null,null,null,null,null,null,null,null,null,null,null,null,null,null,null,null,null,null,null,null,null,null,null,null,null,null,null,null,null,null,null,null,null,null,null,null,null,null,null,null,null,null,null,null,null,null,null,null,null,null,null,null,null,null,null,null,null,null,null,null,null,null,null,null,null,null,null,null,null,null,null,"GWH24QF-K3DNB6G","1078x325x246","963x700x396","Холод: 1,875 / Тепло: 1,945"]
[null,null,null,null,null,null,null,null,null,null,null,null,null,null,null,null,null,null,null,null,null,null,null,null,null,null,null,null,null,null,null,null,null,null,null,null,null,null,null,null,null,null,null,null,null,null,null,null,null,null,null,null,null,null,null,null,null,null,null,null,null,null,null,null,null,null,null,null,null,null,null,null,null,null,null,null,null,null,null,null,null,null,null,null,null,null,null,null,null,null,null,null,null,null,null,null,null,null,null,null,null,null,null,null,null,null,null,null,null,null,null,null,null,null,null,null,null,null,null,null,null,null,null,null,null,null,null,null,null,null,"GWH18QE-S6DBD2B","1101x327x249","1000x790x427","Холод: 1,32 / Тепло: 1,32"]
[null,null,null,null,null,null,null,null,null,null,null,null,null,null,null,null,null,null,null,null,null,null,null,null,null,null,null,null,null,null,null,null,null,null,null,null,null,null,null,null,null,null,null,null,null,null,null,null,null,null,null,null,null,null,null,null,null,null,null,null,null,null,null,null,null,null,null,null,null,null,null,null,null,null,null,null,null,null,null,null,null,null,null,null,null,null,null,null,null,null,null,null,null,null,null,null,null,null,null,null,null,null,null,null,null,null,null,null,null,null,null,null,null,null,null,null,null,null,null,null,null,null,null,null,null,null,null,null,null,null,"GWH09QD-S6DBD2A","996x301x225","899x596x378","Холод: 0,55 / Тепло: 0,745"]
[null,null,null,null,null,null,null,null,null,null,null,null,null,null,null,null,null,null,null,null,null,null,null,null,null,null,null,null,null,null,null,null,null,null,null,null,null,null,null,null,null,null,null,null,null,null,null,null,null,null,null,null,null,null,null,null,null,null,null,null,null,null,null,null,null,null,null,null,null,null,null,null,null,null,null,null,null,null,null,null,null,null,null,null,null,null,null,null,null,null,null,null,null,null,null,null,null,null,null,null,null,null,null,null,null,null,null,null,null,null,null,null,null,null,null,null,null,null,null,null,null,null,null,null,null,null,null,null,null,null,"GWH24QE-S6DBD2A","1101x327x249","1000x790x427","Холод: 1,84 / Тепло: 1,75"]
[null,null,null,null,null,null,null,null,null,null,null,null,null,null,null,null,null,null,null,null,null,null,null,null,null,null,null,null,null,null,null,null,null,null,null,null,null,null,null,null,null,null,null,null,null,null,null,null,null,null,null,null,null,null,null,null,null,null,null,null,null,null,null,null,null,null,null,null,null,null,null,null,null,null,null,null,null,null,null,null,null,null,null,null,null,null,null,null,null,null,null,null,null,null,null,null,null,null,null,null,null,null,null,null,null,null,null,null,null,null,null,null,null,null,null,null,null,null,null,null,null,null,null,null,null,null,null,null,null,null,"GWH24QD-K6DND2D  (Золото)","1078x325x246","965x700x396","Холод: 1,90 / Тепло: 1,89"]
[null,null,null,null,null,null,null,null,null,null,null,null,null,null,null,null,null,null,null,null,null,null,null,null,null,null,null,null,null,null,null,null,null,null,null,null,null,null,null,null,null,null,null,null,null,null,null,null,null,null,null,null,null,null,null,null,null,null,null,null,null,null,null,null,null,null,null,null,null,null,null,null,null,null,null,null,null,null,null,null,null,null,null,null,null,null,null,null,null,null,null,null,null,null,null,null,null,null,null,null,null,null,null,null,null,null,null,null,null,null,null,null,null,null,null,null,null,null,null,null,null,null,null,null,null,null,null,null,null,null,"GWH12QC-K6DND2D  (Серебро)","845x289x209","848x596x320","Холод: 1,085 / Тепло: 0,99"]
[null,null,null,null,null,null,null,null,null,null,null,null,null,null,null,null,null,null,null,null,null,null,null,null,null,null,null,null,null,null,null,null,null,null,null,null,null,null,null,null,null,null,null,null,null,null,null,null,null,null,null,null,null,null,null,null,null,null,null,null,null,null,null,null,null,null,null,null,null,null,null,null,null,null,null,null,null,null,null,null,null,null,null,null,null,null,null,null,null,null,null,null,null,null,null,null,null,null,null,null,null,null,null,null,null,null,null,null,null,null,null,null,null,null,null,null,null,null,null,null,null,null,null,null,null,null,null,null,null,null,"GWH18QD-K6DND2D  (Белый)","970x300x224","965x700x396","Холод: 1,528 / Тепло: 1,41"]
[null,null,null,null,null,null,null,null,null,null,null,null,null,null,null,null,null,null,null,null,null,null,null,null,null,null,null,null,null,null,null,null,null,null,null,null,null,null,null,null,null,null,null,null,null,null,null,null,null,null,null,null,null,null,null,null,null,null,null,null,null,null,null,null,null,null,null,null,null,null,null,null,null,null,null,null,null,null,null,null,null,null,null,null,null,null,null,null,null,null,null,null,null,null,null,null,null,null,null,null,null,null,null,null,null,null,null,null,null,null,null,null,null,null,null,null,null,null,null,null,null,null,null,null,null,null,null,null,null,null,"GWH09QB-K6DND2E  (Серебро)","790x275x200","782x540x320","Холод: 0,82 / Тепло: 0,755"]
[null,null,null,null,null,null,null,null,null,null,null,null,null,null,null,null,null,null,null,null,null,null,null,null,null,null,null,null,null,null,null,null,null,null,null,null,null,null,null,null,null,null,null,null,null,null,null,null,null,null,null,null,null,null,null,null,null,null,null,null,null,null,null,null,null,null,null,null,null,null,null,null,null,null,null,null,null,null,null,null,null,null,null,null,null,null,null,null,null,null,null,null,null,null,null,null,null,null,null,null,null,null,null,null,null,null,null,null,null,null,null,null,null,null,null,null,null,null,null,null,null,null,null,null,null,null,null,null,null,null,"GWH24QD-K6DND2D  (Серебро)","1078x325x246","965x700x396","Холод: 1,90 / Тепло: 1,89"]
[null,null,null,null,null,null,null,null,null,null,null,null,null,null,null,null,null,null,null,null,null,null,null,null,null,null,null,null,null,null,null,null,null,null,null,null,null,null,null,null,null,null,null,null,null,null,null,null,null,null,null,null,null,null,null,null,null,null,null,null,null,null,null,null,null,null,null,null,null,null,null,null,null,null,null,null,null,null,null,null,null,null,null,null,null,null,null,null,null,null,null,null,null,null,null,null,null,null,null,null,null,null,null,null,null,null,null,null,null,null,null,null,null,null,null,null,null,null,null,null,null,null,null,null,null,null,null,null,null,null,"GWH18QD-K6DND2D  (Серебро)","970x300x224","965x700x396","Холод: 1,528 / Тепло: 1,41"]
[null,null,null,null,null,null,null,null,null,null,null,null,null,null,null,null,null,null,null,null,null,null,null,null,null,null,null,null,null,null,null,null,null,null,null,null,null,null,null,null,null,null,null,null,null,null,null,null,null,null,null,null,null,null,null,null,null,null,null,null,null,null,null,null,null,null,null,null,null,null,null,null,null,null,null,null,null,null,null,null,null,null,null,null,null,null,null,null,null,null,null,null,null,null,null,null,null,null,null,null,null,null,null,null,null,null,null,null,null,null,null,null,null,null,null,null,null,null,null,null,null,null,null,null,null,null,null,null,null,null,"GWH09QB-K6DND2E  (Белый)","790x275x200","782x540x320","Холод: 0,82 / Тепло: 0,755"]
[null,null,null,null,null,null,null,null,null,null,null,null,null,null,null,null,null,null,null,null,null,null,null,null,null,null,null,null,null,null,null,null,null,null,null,null,null,null,null,null,null,null,null,null,null,null,null,null,null,null,null,null,null,null,null,null,null,null,null,null,null,null,null,null,null,null,null,null,null,null,null,null,null,null,null,null,null,null,null,null,null,null,null,null,null,null,null,null,null,null,null,null,null,null,null,null,null,null,null,null,null,null,null,null,null,null,null,null,null,null,null,null,null,null,null,null,null,null,null,null,null,null,null,null,null,null,null,null,null,null,"GWH12QC-K6DND2D  (Белый)","845x289x209","848x596x320","Холод: 1,085 / Тепло: 0,99"]
[null,null,null,null,null,null,null,null,null,null,null,null,null,null,null,null,null,null,null,null,null,null,null,null,null,null,null,null,null,null,null,null,null,null,null,null,null,null,null,null,null,null,null,null,null,null,null,null,null,null,null,null,null,null,null,null,null,null,null,null,null,null,null,null,null,null,null,null,null,null,null,null,null,null,null,null,null,null,null,null,null,null,null,null,null,null,null,null,null,null,null,null,null,null,null,null,null,null,null,null,null,null,null,null,null,null,null,null,null,null,null,null,null,null,null,null,null,null,null,null,null,null,null,null,null,null,null,null,null,null,"GWH12AAB-K3DNA5A","773x250x185","848x596x320","Холод: 0,997 / Тепло: 0,942"]
[null,null,null,null,null,null,null,null,null,null,null,null,null,null,null,null,null,null,null,null,null,null,null,null,null,null,null,null,null,null,null,null,null,null,null,null,null,null,null,null,null,null,null,null,null,null,null,null,null,null,null,null,null,null,null,null,null,null,null,null,null,null,null,null,null,null,null,null,null,null,null,null,null,null,null,null,null,null,null,null,null,null,null,null,null,null,null,null,null,null,null,null,null,null,null,null,null,null,null,null,null,null,null,null,null,null,null,null,null,null,null,null,null,null,null,null,null,null,null,null,null,null,null,null,null,null,null,null,null,null,"GWH09AAB-K3DNA5A","773x250x185","776x540x320","Холод: 0,79 / Тепло: 0,65"]
[null,null,null,null,null,null,null,null,null,null,null,null,null,null,null,null,null,null,null,null,null,null,null,null,null,null,null,null,null,null,null,null,null,null,null,null,null,null,null,null,null,null,null,null,null,null,null,null,null,null,null,null,null,null,null,null,null,null,null,null,null,null,null,null,null,null,null,null,null,null,null,null,null,null,null,null,null,null,null,null,null,null,null,null,null,null,null,null,null,null,null,null,null,null,null,null,null,null,null,null,null,null,null,null,null,null,null,null,null,null,null,null,null,null,null,null,null,null,null,null,null,null,null,null,null,null,null,null,null,null,"GWH18AAD-K3DNA5E","970x300x225","842x596x320","Холод: 1,43 / Тепло: 1,38"]
[null,null,null,null,null,null,null,null,null,null,null,null,null,null,null,null,null,null,null,null,null,null,null,null,null,null,null,null,null,null,null,null,null,null,null,null,null,null,null,null,null,null,null,null,null,null,null,null,null,null,null,null,null,null,null,null,null,null,null,null,null,null,null,null,null,null,null,null,null,null,null,null,null,null,null,null,null,null,null,null,null,null,null,null,null,null,null,null,null,null,null,null,null,null,null,null,null,null,null,null,null,null,null,null,null,null,null,null,null,null,null,null,null,null,null,null,null,null,null,null,null,null,null,null,null,null,null,null,null,null,"GWH24AAD-K3DNA5A","955x700x396","842x596x320","Холод: 2 / Тепло: 1,9"]